Workbook

Sheet بينات التلاميد
A3: رقم التسجيل | B3: اللقب و الاســم | C3: تاريخ الميلاد | D3: مكان الميلاد | E3: الجنس | F3: الصفة | G3: القسم | H3: إسم الولي | I3: مهنة الولي | J3: العنوان | K3: القسم بالاحرف | L3: ر ت | M3: تاريخ الخروج | N3: تاريخ الدخول | O3: أكتوبر
O4: دخول | P4: خروج
A5: 2 | B5: أحمد1 | C5: 2000-05-04 | D5: مغنية | E5: ذ | F5: م2 | G5: 3ت ر | H5: الهاشمي1 | J5: قرية عقيد عباس | K5: السنة الثالثة ثانوي تقني رياضي | L5: 2 | M5: ////// | Q5: =COUNTIF($B$2:$B$56,"?*") -> 48
A6: 1 | B6: أحمد2 | C6: 2000-08-30 | D6: مغنية | E6: أ | F6: م2 | G6: 3ت ر | H6: الهاشمي2 | J6: حي الركيزة حمام بوغرارة 13320 | K6: السنة الثالثة ثانوي تقني رياضي | L6: 1 | M6: ////// | O6: د ن1
A7: 3 | B7: أحمد3 | C7: 2000-07-06 | D7: مغنية | E7: أ | F7: م2 | G7: 3ت ر | H7: الهاشمي3 | J7: قرية البخاتة مغنية | K7: السنة الثالثة ثانوي تقني رياضي | L7: 3 | M7: //////
A8: 5 | B8: أحمد4 | C8: 2000-07-25 | D8: مغنية | E8: أ | F8: خ2 | G8: 3ت ر | H8: الهاشمي4 | J8: شارع01 رقم 34 حي الشهداء ـ مغنية | K8: السنة الثالثة ثانوي تقني رياضي | L8: 5 | M8: //////
A9: 6 | B9: أحمد5 | C9: 2001-12-10 | D9: مغنية | E9: ذ | F9: خ1 | G9: 3ت ر | H9: الهاشمي5 | J9: عمارة A06 حي القاضي - مغنية | K9: السنة الثالثة ثانوي تقني رياضي | L9: 6 | M9: //////
A10: 7 | B10: أحمد6 | C10: 1999-01-13 | D10: مغنية | E10: أ | F10: م2 | G10: 3ت ر | H10: الهاشمي6 | J10: الطريق الوطني رقم 35 الكفاف ـ مغنية | K10: السنة الثالثة ثانوي تقني رياضي | L10: 7 | M10: //////
A11: 9 | B11: أحمد7 | C11: 1999-09-02 | D11: مغنية | E11: ذ | F11: خ1 | G11: 3ت ر | H11: الهاشمي7 | I11: ع1 | J11: حي الشهداء ـ مغنية | K11: السنة الثالثة ثانوي تقني رياضي | L11: 9 | M11: //////
A12: 10 | B12: أحمد8 | C12: 2000-02-07 | D12: مغنية | E12: ذ | F12: م1 | G12: 3ت ر | H12: الهاشمي8 | J12: قرية اولاد الشارف ـ مغنية | K12: السنة الثالثة ثانوي تقني رياضي | L12: 10
A13: 11 | B13: أحمد9 | C13: 2000-04-04 | D13: مغنية | E13: أ | F13: م2 | G13: 3ت ر | H13: الهاشمي9 | J13: قرية بوسدرة البخاتة ، مغنية | K13: السنة الثالثة ثانوي تقني رياضي | L13: 11 | M13: ////// | O13: ص ن1 | P13: ص خ خ1
A14: 13 | B14: أحمد10 | C14: 2000-05-08 | D14: مغنية | E14: ذ | F14: م1 | G14: 3ت ر | H14: الهاشمي10 | J14: قرية المصامدة ، مغنية | K14: السنة الثالثة ثانوي تقني رياضي | L14: 13 | M14: //////
A15: 14 | B15: أحمد11 | C15: 1999-09-30 | D15: الغزوات | E15: ذ | F15: خ1 | G15: 3ت ر | H15: الهاشمي11 | I15: ع1 | J15: حي الشهداء ـ مغنية | K15: السنة الثالثة ثانوي تقني رياضي | L15: 14 | M15: //////
A16: 15 | B16: أحمد12 | C16: 1997-07-08 | D16: مغنية | E16: ذ | F16: خ1 | G16: 3ت ر | H16: الهاشمي12 | I16: ع1 | J16: حي الشهداء ـ مغنية | K16: السنة الثالثة ثانوي تقني رياضي | L16: 15 | M16: //////
A17: 16 | B17: أحمد13 | C17: 2000-05-02 | D17: مغنية | E17: ذ | F17: م1 | G17: 3ت ر | H17: الهاشمي13 | J17: حي الركيزة حمام بوغرارة 13320 | K17: السنة الثالثة ثانوي تقني رياضي | L17: 16 | M17: //////
A18: 18 | B18: أحمد14 | C18: 2000-07-27 | D18: مغنية | E18: أ | F18: م2 | G18: 3ت ر | H18: الهاشمي14 | J18: قرية المصامدة ، مغنية | K18: السنة الثالثة ثانوي تقني رياضي | L18: 18 | M18: //////
A19: 19 | B19: أحمد15 | C19: 1997-04-09 | D19: مغنية | E19: ذ | F19: ن1 | G19: 3ت ر | H19: الهاشمي15 | I19: ع1 | J19: حمام بوغرارة 13320 | K19: السنة الثالثة ثانوي تقني رياضي | L19: 19 | M19: //////
A20: 16 | B20: أحمد16 | C20: 2000-04-28 | D20: مغنية | E20: ذ | F20: م1 | G20: 3ت ر | H20: الهاشمي16 | J20: قرية العقيد عباس ـ مغنية | K20: السنة الثالثة ثانوي تقني رياضي | L20: 4 | M20: //////
A21: 17 | B21: أحمد17 | C21: 1997-04-06 | D21: مغنية | E21: ذ | F21: ن1 | G21: 3ت ر | H21: الهاشمي17 | I21: ع1 | J21: حمام بوغرارة 13320 | K21: السنة الثالثة ثانوي تقني رياضي | L21: 8 | M21: //////
A22: 18 | B22: أحمد18 | C22: 2000-04-12 | D22: مغنية | E22: ذ | F22: م1 | G22: 3ت ر | H22: الهاشمي18 | J22: قرية لكفاف | K22: السنة الثالثة ثانوي تقني رياضي | L22: 12 | M22: //////
A23: 19 | B23: أحمد19 | C23: 2000-11-16 | D23: مغنية | E23: ذ | F23: م1 | G23: 3ت ر | H23: الهاشمي19 | J23: حمام بوغرارة | K23: السنة الثالثة ثانوي تقني رياضي | L23: 17 | M23: //////
A24: 4 | B24: أحمد20 | C24: 1999-03-03 | D24: مغنية | E24: ذ | F24: خ1 | G24: 3ت ر | H24: الهاشمي20 | I24: ع1 | J24: حي الشهداء حي جابر رقم 17 مغنية | K24: السنة الثالثة ثانوي علوم تجريبية | L24: 20 | M24: //////
A25: 8 | B25: أحمد21 | C25: 2000-07-30 | D25: مغنية | E25: ذ | F25: م1 | G25: 3ت ر | H25: الهاشمي21 | J25: قرية اولاد الشارف مغنية | K25: السنة الثالثة ثانوي علوم تجريبية | L25: 21 | M25: //////
A26: 12 | B26: أحمد22 | C26: 2000-02-19 | D26: مغنية | E26: أ | F26: خ2 | G26: 3ت ر | H26: الهاشمي22 | J26: حي الشهداء رقم 10 | K26: السنة الثالثة ثانوي علوم تجريبية | L26: 22 | M26: //////
A27: 17
A28: 29
A29: 30
A30: 23 | B30: سعاد1 | C30: 2000-08-28 | D30: مغنية | E30: أ | F30: م2 | G30: 3ع ت01 | H30: ايمن1 | J30: قرية المصامدة ـ مغنية | K30: السنة الثالثة ثانوي علوم تجريبية | L30: 23 | M30: //////
A31: 24 | B31: سعاد2 | C31: 1998-01-28 | D31: مغنية | E31: أ | F31: م2 | G31: 3ع ت01 | H31: ايمن2 | J31: قرية العقيد عباس ، مغنية | K31: السنة الثالثة ثانوي علوم تجريبية | L31: 24 | M31: //////
A32: 25 | B32: سعاد3 | C32: 2000-03-01 | D32: مغنية | E32: ذ | F32: م1 | G32: 3ع ت01 | H32: ايمن3 | J32: مزرعة الشرقاي العيد ، مغنية | K32: السنة الثالثة ثانوي علوم تجريبية | L32: 25 | M32: //////
A33: 26 | B33: سعاد4 | C33: 1998-11-08 | D33: مغنية | E33: ذ | F33: خ1 | G33: 3ع ت01 | H33: ايمن4 | I33: ع1 | J33: حي الشهداء ، مغنية | K33: السنة الثالثة ثانوي علوم تجريبية | L33: 26 | M33: //////
A34: 27 | B34: سعاد5 | C34: 1998-04-12 | D34: مغنية | E34: ذ | F34: م1 | G34: 3ع ت01 | H34: ايمن5 | J34: الطريق الوطني رقم 35 الكفاف ، مغنية | K34: السنة الثالثة ثانوي علوم تجريبية | L34: 27 | M34: //////
A35: 28 | B35: سعاد6 | C35: 2000-01-15 | D35: مغنية | E35: أ | F35: م2 | G35: 3ع ت01 | H35: ايمن6 | J35: قرية أولاد الشارف ، مغنية | K35: السنة الثالثة ثانوي علوم تجريبية | L35: 28 | M35: //////
A36: 29 | B36: سعاد7 | C36: 1999-06-26 | D36: مغنية | E36: ذ | F36: م1 | G36: 3ع ت01 | H36: ايمن7 | J36: قرية بوسدرة البخاتة ـ مغنية | K36: السنة الثالثة ثانوي علوم تجريبية | L36: 29 | M36: //////
A37: 30 | B37: سعاد8 | C37: 2000-04-24 | D37: مغنية | E37: أ | F37: م2 | G37: 3ع ت01 | H37: ايمن8 | J37: حي الباطوار شارع 17 الباب 06 مغنية | K37: السنة الثالثة ثانوي علوم تجريبية | L37: 30 | M37: //////
A38: 31 | B38: سعاد9 | C38: 1999-11-03 | D38: مغنية | E38: أ | F38: ن2 | G38: 3ع ت01 | H38: ايمن9 | I38: ع2 | J38: قرية بوسدرة البخاتة ، مغنية | K38: السنة الثالثة ثانوي علوم تجريبية | L38: 31 | M38: //////
A39: 32 | B39: سعاد10 | C39: 2000-06-04 | D39: مغنية | E39: أ | F39: م2 | G39: 3ع ت01 | H39: ايمن10 | J39: العقيد عباس | K39: السنة الثالثة ثانوي علوم تجريبية | L39: 32 | M39: //////
A40: 33 | B40: سعاد11 | C40: 1999-08-08 | D40: عين الترك | E40: ذ | F40: ن1 | G40: 3ع ت01 | H40: ايمن11 | I40: ع1 | J40: حي أولاد بن صابر ، مغنية | K40: السنة الثالثة ثانوي علوم تجريبية | L40: 33 | M40: //////
A41: 34 | B41: سعاد12 | C41: 2000-05-28 | D41: مغنية | E41: ذ | F41: م1 | G41: 3ع ت01 | H41: ايمن12 | J41: قرية لكفاف مغنية | K41: السنة الثالثة ثانوي علوم تجريبية | L41: 34 | M41: //////
A42: 35 | B42: سعاد13 | C42: 2000-08-31 | D42: مغنية | E42: ذ | F42: م1 | G42: 3ع ت01 | H42: ايمن13 | J42: اولاد الشارف مغنية تلمسان | K42: السنة الثالثة ثانوي علوم تجريبية | L42: 35 | M42: //////
A43: 36 | B43: سعاد14 | C43: 2000-02-24 | D43: مغنية | E43: ذ | F43: م1 | G43: 3ع ت01 | H43: ايمن14 | J43: قرية العقيد لطيفي L4 B2 مغنية | K43: السنة الثالثة ثانوي علوم تجريبية | L43: 36 | M43: //////
A44: 37 | B44: سعاد15 | C44: 1999-08-31 | D44: مغنية | E44: ذ | F44: خ1 | G44: 3ع ت01 | H44: ايمن15 | I44: ع1 | J44: شارع 25 حي الشهداء ـ مغنية | K44: السنة الثالثة ثانوي علوم تجريبية | L44: 37 | M44: //////
A45: 38 | B45: سعاد16 | C45: 2000-04-11 | D45: مغنية | E45: أ | F45: خ2 | G45: 3ع ت01 | H45: ايمن16 | J45: حي بلال العمارة رقم04 الطابق3 | K45: السنة الثالثة ثانوي علوم تجريبية | L45: 38 | M45: //////
A46: 39 | B46: سعاد17 | C46: 1999-10-12 | D46: أولاد ميمون | E46: أ | F46: ن2 | G46: 3ع ت01 | H46: ايمن17 | I46: ع2 | J46: الطريق الوطني رقم 35 الكفاف ، مغنية | K46: السنة الثالثة ثانوي علوم تجريبية | L46: 39 | M46: //////
A47: 40 | B47: سعاد18 | C47: 1999-04-21 | D47: بشار | E47: ذ | F47: ن1 | G47: 3ع ت01 | H47: ايمن18 | I47: ع1 | J47: قرية المصامدة ـ مغنية | K47: السنة الثالثة ثانوي علوم تجريبية | L47: 40 | M47: //////
A48: 41 | B48: سعاد19 | C48: 2000-06-18 | D48: مغنية | E48: ذ | F48: خ1 | G48: 3ع ت01 | H48: ايمن19 | K48: السنة الثالثة ثانوي علوم تجريبية | L48: 41 | M48: //////
A49: 42 | B49: سعاد20 | C49: 1999-03-28 | D49: مغنية | E49: ذ | F49: خ1 | G49: 3ع ت01 | H49: ايمن20 | I49: ع1 | J49: رقم 16 شارع محطة القطار ، مغنية | K49: السنة الثالثة ثانوي علوم تجريبية | L49: 42 | M49: //////
A50: 43 | B50: سعاد21 | C50: 2000-11-14 | D50: حسين داي | E50: أ | F50: خ2 | G50: 3ع ت01 | H50: ايمن21 | J50: 27حي 240 مسكن حي الغابات مغنية | K50: السنة الثالثة ثانوي علوم تجريبية | L50: 43 | M50: //////
A51: 44 | B51: سعاد22 | C51: 2000-06-06 | D51: مغنية | E51: ذ | F51: م1 | G51: 3ع ت01 | H51: ايمن22 | J51: اولاد قدور الصغار مغنية | K51: السنة الثالثة ثانوي علوم تجريبية | L51: 44 | M51: //////
A52: 45 | B52: سعاد23 | C52: 2000-03-16 | D52: مغنية | E52: أ | F52: م2 | G52: 3ع ت01 | H52: ايمن23 | J52: قرية البخاتة بوسدرة | K52: السنة الثالثة ثانوي علوم تجريبية | L52: 45 | M52: //////
A53: 46 | B53: سعاد24 | C53: 2000-08-16 | D53: مغنية | E53: أ | F53: خ2 | G53: 3ع ت01 | H53: ايمن24 | J53: حي الشهداء رقم39 | K53: السنة الثالثة ثانوي علوم تجريبية | L53: 46 | M53: //////
A54: 47 | B54: سعاد25 | C54: 1997-10-16 | D54: مغنية | E54: أ | F54: خ2 | G54: 3ع ت01 | H54: ايمن25 | J54: حي بلال رقم 41 ، مغنية | K54: السنة الثالثة ثانوي علوم تجريبية | L54: 47 | M54: //////

Sheet أسماء التلاميذ
B1: أسماء التلاميذ
A2: =IFERROR(VLOOKUP(C2,$D$2:$E$20,2,0),"") -> Classe1 | B2: =IFERROR(IF(ROWS($B$2:B2)>'بينات التلاميد'!$Q$5,"",INDEX('بينات التلاميد'!$B$5:$B$56,SMALL(IF('بينات التلاميد'!$B$5:$B$56<>"",ROW('بينات التلاميد'!$B$5:$B$56)-ROW($B$5)+1),ROWS($B$2:B2)))),"") -> أحمد1 | C2: =IFERROR(VLOOKUP(B2,'بينات التلاميد'!$B$5:$G$56,6,0),"") -> 3ت ر | D2: 3ت ر | E2: Classe1
A3: Classe1 | B3: =IFERROR(IF(ROWS($B$2:B3)>'بينات التلاميد'!$Q$5,"",INDEX('بينات التلاميد'!$B$5:$B$56,SMALL(IF('بينات التلاميد'!$B$5:$B$56<>"",ROW('بينات التلاميد'!$B$5:$B$56)-ROW($B$5)+1),ROWS($B$2:B3)))),"") -> أحمد2 | C3: =IFERROR(VLOOKUP(B3,'بينات التلاميد'!$B$5:$G$56,6,0),"") -> 3ت ر | D3: 3ع ت01 | E3: Classe2
A4: Classe1 | B4: =IFERROR(IF(ROWS($B$2:B4)>'بينات التلاميد'!$Q$5,"",INDEX('بينات التلاميد'!$B$5:$B$56,SMALL(IF('بينات التلاميد'!$B$5:$B$56<>"",ROW('بينات التلاميد'!$B$5:$B$56)-ROW($B$5)+1),ROWS($B$2:B4)))),"") -> أحمد3 | C4: =IFERROR(VLOOKUP(B4,'بينات التلاميد'!$B$5:$G$56,6,0),"") -> 3ت ر | D4: 3ع ت02 | E4: Classe3
A5: Classe1 | B5: =IFERROR(IF(ROWS($B$2:B5)>'بينات التلاميد'!$Q$5,"",INDEX('بينات التلاميد'!$B$5:$B$56,SMALL(IF('بينات التلاميد'!$B$5:$B$56<>"",ROW('بينات التلاميد'!$B$5:$B$56)-ROW($B$5)+1),ROWS($B$2:B5)))),"") -> أحمد4 | C5: =IFERROR(VLOOKUP(B5,'بينات التلاميد'!$B$5:$G$56,6,0),"") -> 3ت ر | D5: 3ت إ | E5: Classe4
A6: Classe1 | B6: =IFERROR(IF(ROWS($B$2:B6)>'بينات التلاميد'!$Q$5,"",INDEX('بينات التلاميد'!$B$5:$B$56,SMALL(IF('بينات التلاميد'!$B$5:$B$56<>"",ROW('بينات التلاميد'!$B$5:$B$56)-ROW($B$5)+1),ROWS($B$2:B6)))),"") -> أحمد5 | C6: =IFERROR(VLOOKUP(B6,'بينات التلاميد'!$B$5:$G$56,6,0),"") -> 3ت ر | D6: 3أ ف | E6: Classe5
A7: Classe1 | B7: =IFERROR(IF(ROWS($B$2:B7)>'بينات التلاميد'!$Q$5,"",INDEX('بينات التلاميد'!$B$5:$B$56,SMALL(IF('بينات التلاميد'!$B$5:$B$56<>"",ROW('بينات التلاميد'!$B$5:$B$56)-ROW($B$5)+1),ROWS($B$2:B7)))),"") -> أحمد6 | C7: =IFERROR(VLOOKUP(B7,'بينات التلاميد'!$B$5:$G$56,6,0),"") -> 3ت ر | D7: 3لغات | E7: Classe6
A8: Classe1 | B8: =IFERROR(IF(ROWS($B$2:B8)>'بينات التلاميد'!$Q$5,"",INDEX('بينات التلاميد'!$B$5:$B$56,SMALL(IF('بينات التلاميد'!$B$5:$B$56<>"",ROW('بينات التلاميد'!$B$5:$B$56)-ROW($B$5)+1),ROWS($B$2:B8)))),"") -> أحمد7 | C8: =IFERROR(VLOOKUP(B8,'بينات التلاميد'!$B$5:$G$56,6,0),"") -> 3ت ر | D8: 2ع ت01 | E8: Classe7
A9: Classe1 | B9: =IFERROR(IF(ROWS($B$2:B9)>'بينات التلاميد'!$Q$5,"",INDEX('بينات التلاميد'!$B$5:$B$56,SMALL(IF('بينات التلاميد'!$B$5:$B$56<>"",ROW('بينات التلاميد'!$B$5:$B$56)-ROW($B$5)+1),ROWS($B$2:B9)))),"") -> أحمد8 | C9: =IFERROR(VLOOKUP(B9,'بينات التلاميد'!$B$5:$G$56,6,0),"") -> 3ت ر | D9: 2ع ت02 | E9: Classe8
A10: Classe1 | B10: =IFERROR(IF(ROWS($B$2:B10)>'بينات التلاميد'!$Q$5,"",INDEX('بينات التلاميد'!$B$5:$B$56,SMALL(IF('بينات التلاميد'!$B$5:$B$56<>"",ROW('بينات التلاميد'!$B$5:$B$56)-ROW($B$5)+1),ROWS($B$2:B10)))),"") -> أحمد9 | C10: =IFERROR(VLOOKUP(B10,'بينات التلاميد'!$B$5:$G$56,6,0),"") -> 3ت ر | D10: 2ت إ | E10: Classe9
A11: Classe1 | B11: =IFERROR(IF(ROWS($B$2:B11)>'بينات التلاميد'!$Q$5,"",INDEX('بينات التلاميد'!$B$5:$B$56,SMALL(IF('بينات التلاميد'!$B$5:$B$56<>"",ROW('بينات التلاميد'!$B$5:$B$56)-ROW($B$5)+1),ROWS($B$2:B11)))),"") -> أحمد10 | C11: =IFERROR(VLOOKUP(B11,'بينات التلاميد'!$B$5:$G$56,6,0),"") -> 3ت ر | D11: 2أ ف | E11: Classe10
A12: Classe1 | B12: =IFERROR(IF(ROWS($B$2:B12)>'بينات التلاميد'!$Q$5,"",INDEX('بينات التلاميد'!$B$5:$B$56,SMALL(IF('بينات التلاميد'!$B$5:$B$56<>"",ROW('بينات التلاميد'!$B$5:$B$56)-ROW($B$5)+1),ROWS($B$2:B12)))),"") -> أحمد11 | C12: =IFERROR(VLOOKUP(B12,'بينات التلاميد'!$B$5:$G$56,6,0),"") -> 3ت ر | D12: 2لغات | E12: Classe11
A13: Classe1 | B13: =IFERROR(IF(ROWS($B$2:B13)>'بينات التلاميد'!$Q$5,"",INDEX('بينات التلاميد'!$B$5:$B$56,SMALL(IF('بينات التلاميد'!$B$5:$B$56<>"",ROW('بينات التلاميد'!$B$5:$B$56)-ROW($B$5)+1),ROWS($B$2:B13)))),"") -> أحمد12 | C13: =IFERROR(VLOOKUP(B13,'بينات التلاميد'!$B$5:$G$56,6,0),"") -> 3ت ر | D13: 2ت ر | E13: Classe19
A14: Classe1 | B14: =IFERROR(IF(ROWS($B$2:B14)>'بينات التلاميد'!$Q$5,"",INDEX('بينات التلاميد'!$B$5:$B$56,SMALL(IF('بينات التلاميد'!$B$5:$B$56<>"",ROW('بينات التلاميد'!$B$5:$B$56)-ROW($B$5)+1),ROWS($B$2:B14)))),"") -> أحمد13 | C14: =IFERROR(VLOOKUP(B14,'بينات التلاميد'!$B$5:$G$56,6,0),"") -> 3ت ر | D14: 1ع1 | E14: Classe12
A15: Classe1 | B15: =IFERROR(IF(ROWS($B$2:B15)>'بينات التلاميد'!$Q$5,"",INDEX('بينات التلاميد'!$B$5:$B$56,SMALL(IF('بينات التلاميد'!$B$5:$B$56<>"",ROW('بينات التلاميد'!$B$5:$B$56)-ROW($B$5)+1),ROWS($B$2:B15)))),"") -> أحمد14 | C15: =IFERROR(VLOOKUP(B15,'بينات التلاميد'!$B$5:$G$56,6,0),"") -> 3ت ر | D15: 1ع2 | E15: Classe13
A16: Classe1 | B16: =IFERROR(IF(ROWS($B$2:B16)>'بينات التلاميد'!$Q$5,"",INDEX('بينات التلاميد'!$B$5:$B$56,SMALL(IF('بينات التلاميد'!$B$5:$B$56<>"",ROW('بينات التلاميد'!$B$5:$B$56)-ROW($B$5)+1),ROWS($B$2:B16)))),"") -> أحمد15 | C16: =IFERROR(VLOOKUP(B16,'بينات التلاميد'!$B$5:$G$56,6,0),"") -> 3ت ر | D16: 1ع3 | E16: Classe14
A17: Classe1 | B17: =IFERROR(IF(ROWS($B$2:B17)>'بينات التلاميد'!$Q$5,"",INDEX('بينات التلاميد'!$B$5:$B$56,SMALL(IF('بينات التلاميد'!$B$5:$B$56<>"",ROW('بينات التلاميد'!$B$5:$B$56)-ROW($B$5)+1),ROWS($B$2:B17)))),"") -> أحمد16 | C17: =IFERROR(VLOOKUP(B17,'بينات التلاميد'!$B$5:$G$56,6,0),"") -> 3ت ر | D17: 1ع4 | E17: Classe15
A18: Classe1 | B18: =IFERROR(IF(ROWS($B$2:B18)>'بينات التلاميد'!$Q$5,"",INDEX('بينات التلاميد'!$B$5:$B$56,SMALL(IF('بينات التلاميد'!$B$5:$B$56<>"",ROW('بينات التلاميد'!$B$5:$B$56)-ROW($B$5)+1),ROWS($B$2:B18)))),"") -> أحمد17 | C18: =IFERROR(VLOOKUP(B18,'بينات التلاميد'!$B$5:$G$56,6,0),"") -> 3ت ر | D18: 1ع5 | E18: Classe16
A19: Classe1 | B19: =IFERROR(IF(ROWS($B$2:B19)>'بينات التلاميد'!$Q$5,"",INDEX('بينات التلاميد'!$B$5:$B$56,SMALL(IF('بينات التلاميد'!$B$5:$B$56<>"",ROW('بينات التلاميد'!$B$5:$B$56)-ROW($B$5)+1),ROWS($B$2:B19)))),"") -> أحمد18 | C19: =IFERROR(VLOOKUP(B19,'بينات التلاميد'!$B$5:$G$56,6,0),"") -> 3ت ر | D19: 1أ1 | E19: Classe17
A20: Classe1 | B20: =IFERROR(IF(ROWS($B$2:B20)>'بينات التلاميد'!$Q$5,"",INDEX('بينات التلاميد'!$B$5:$B$56,SMALL(IF('بينات التلاميد'!$B$5:$B$56<>"",ROW('بينات التلاميد'!$B$5:$B$56)-ROW($B$5)+1),ROWS($B$2:B20)))),"") -> أحمد19 | C20: =IFERROR(VLOOKUP(B20,'بينات التلاميد'!$B$5:$G$56,6,0),"") -> 3ت ر | D20: 1أ2 | E20: Classe18
A21: Classe1 | B21: =IFERROR(IF(ROWS($B$2:B21)>'بينات التلاميد'!$Q$5,"",INDEX('بينات التلاميد'!$B$5:$B$56,SMALL(IF('بينات التلاميد'!$B$5:$B$56<>"",ROW('بينات التلاميد'!$B$5:$B$56)-ROW($B$5)+1),ROWS($B$2:B21)))),"") -> أحمد20 | C21: =IFERROR(VLOOKUP(B21,'بينات التلاميد'!$B$5:$G$56,6,0),"") -> 3ت ر
A22: Classe1 | B22: =IFERROR(IF(ROWS($B$2:B22)>'بينات التلاميد'!$Q$5,"",INDEX('بينات التلاميد'!$B$5:$B$56,SMALL(IF('بينات التلاميد'!$B$5:$B$56<>"",ROW('بينات التلاميد'!$B$5:$B$56)-ROW($B$5)+1),ROWS($B$2:B22)))),"") -> أحمد21 | C22: =IFERROR(VLOOKUP(B22,'بينات التلاميد'!$B$5:$G$56,6,0),"") -> 3ت ر
A23: Classe1 | B23: =IFERROR(IF(ROWS($B$2:B23)>'بينات التلاميد'!$Q$5,"",INDEX('بينات التلاميد'!$B$5:$B$56,SMALL(IF('بينات التلاميد'!$B$5:$B$56<>"",ROW('بينات التلاميد'!$B$5:$B$56)-ROW($B$5)+1),ROWS($B$2:B23)))),"") -> أحمد22 | C23: =IFERROR(VLOOKUP(B23,'بينات التلاميد'!$B$5:$G$56,6,0),"") -> 3ت ر
A24: Classe2 | B24: =IFERROR(IF(ROWS($B$2:B24)>'بينات التلاميد'!$Q$5,"",INDEX('بينات التلاميد'!$B$5:$B$56,SMALL(IF('بينات التلاميد'!$B$5:$B$56<>"",ROW('بينات التلاميد'!$B$5:$B$56)-ROW($B$5)+1),ROWS($B$2:B24)))),"") -> سعاد1 | C24: =IFERROR(VLOOKUP(B24,'بينات التلاميد'!$B$5:$G$56,6,0),"") -> 3ع ت01
A25: Classe2 | B25: =IFERROR(IF(ROWS($B$2:B25)>'بينات التلاميد'!$Q$5,"",INDEX('بينات التلاميد'!$B$5:$B$56,SMALL(IF('بينات التلاميد'!$B$5:$B$56<>"",ROW('بينات التلاميد'!$B$5:$B$56)-ROW($B$5)+1),ROWS($B$2:B25)))),"") -> سعاد2 | C25: =IFERROR(VLOOKUP(B25,'بينات التلاميد'!$B$5:$G$56,6,0),"") -> 3ع ت01
A26: Classe2 | B26: =IFERROR(IF(ROWS($B$2:B26)>'بينات التلاميد'!$Q$5,"",INDEX('بينات التلاميد'!$B$5:$B$56,SMALL(IF('بينات التلاميد'!$B$5:$B$56<>"",ROW('بينات التلاميد'!$B$5:$B$56)-ROW($B$5)+1),ROWS($B$2:B26)))),"") -> سعاد3 | C26: =IFERROR(VLOOKUP(B26,'بينات التلاميد'!$B$5:$G$56,6,0),"") -> 3ع ت01
A27: Classe2 | B27: =IFERROR(IF(ROWS($B$2:B27)>'بينات التلاميد'!$Q$5,"",INDEX('بينات التلاميد'!$B$5:$B$56,SMALL(IF('بينات التلاميد'!$B$5:$B$56<>"",ROW('بينات التلاميد'!$B$5:$B$56)-ROW($B$5)+1),ROWS($B$2:B27)))),"") -> سعاد4 | C27: =IFERROR(VLOOKUP(B27,'بينات التلاميد'!$B$5:$G$56,6,0),"") -> 3ع ت01
A28: Classe2 | B28: =IFERROR(IF(ROWS($B$2:B28)>'بينات التلاميد'!$Q$5,"",INDEX('بينات التلاميد'!$B$5:$B$56,SMALL(IF('بينات التلاميد'!$B$5:$B$56<>"",ROW('بينات التلاميد'!$B$5:$B$56)-ROW($B$5)+1),ROWS($B$2:B28)))),"") -> سعاد5 | C28: =IFERROR(VLOOKUP(B28,'بينات التلاميد'!$B$5:$G$56,6,0),"") -> 3ع ت01
A29: Classe2 | B29: =IFERROR(IF(ROWS($B$2:B29)>'بينات التلاميد'!$Q$5,"",INDEX('بينات التلاميد'!$B$5:$B$56,SMALL(IF('بينات التلاميد'!$B$5:$B$56<>"",ROW('بينات التلاميد'!$B$5:$B$56)-ROW($B$5)+1),ROWS($B$2:B29)))),"") -> سعاد6 | C29: =IFERROR(VLOOKUP(B29,'بينات التلاميد'!$B$5:$G$56,6,0),"") -> 3ع ت01
A30: Classe2 | B30: =IFERROR(IF(ROWS($B$2:B30)>'بينات التلاميد'!$Q$5,"",INDEX('بينات التلاميد'!$B$5:$B$56,SMALL(IF('بينات التلاميد'!$B$5:$B$56<>"",ROW('بينات التلاميد'!$B$5:$B$56)-ROW($B$5)+1),ROWS($B$2:B30)))),"") -> سعاد7 | C30: =IFERROR(VLOOKUP(B30,'بينات التلاميد'!$B$5:$G$56,6,0),"") -> 3ع ت01
A31: Classe2 | B31: =IFERROR(IF(ROWS($B$2:B31)>'بينات التلاميد'!$Q$5,"",INDEX('بينات التلاميد'!$B$5:$B$56,SMALL(IF('بينات التلاميد'!$B$5:$B$56<>"",ROW('بينات التلاميد'!$B$5:$B$56)-ROW($B$5)+1),ROWS($B$2:B31)))),"") -> سعاد8 | C31: =IFERROR(VLOOKUP(B31,'بينات التلاميد'!$B$5:$G$56,6,0),"") -> 3ع ت01
A32: Classe2 | B32: =IFERROR(IF(ROWS($B$2:B32)>'بينات التلاميد'!$Q$5,"",INDEX('بينات التلاميد'!$B$5:$B$56,SMALL(IF('بينات التلاميد'!$B$5:$B$56<>"",ROW('بينات التلاميد'!$B$5:$B$56)-ROW($B$5)+1),ROWS($B$2:B32)))),"") -> سعاد9 | C32: =IFERROR(VLOOKUP(B32,'بينات التلاميد'!$B$5:$G$56,6,0),"") -> 3ع ت01
A33: Classe2 | B33: =IFERROR(IF(ROWS($B$2:B33)>'بينات التلاميد'!$Q$5,"",INDEX('بينات التلاميد'!$B$5:$B$56,SMALL(IF('بينات التلاميد'!$B$5:$B$56<>"",ROW('بينات التلاميد'!$B$5:$B$56)-ROW($B$5)+1),ROWS($B$2:B33)))),"") -> سعاد10 | C33: =IFERROR(VLOOKUP(B33,'بينات التلاميد'!$B$5:$G$56,6,0),"") -> 3ع ت01
A34: Classe2 | B34: =IFERROR(IF(ROWS($B$2:B34)>'بينات التلاميد'!$Q$5,"",INDEX('بينات التلاميد'!$B$5:$B$56,SMALL(IF('بينات التلاميد'!$B$5:$B$56<>"",ROW('بينات التلاميد'!$B$5:$B$56)-ROW($B$5)+1),ROWS($B$2:B34)))),"") -> سعاد11 | C34: =IFERROR(VLOOKUP(B34,'بينات التلاميد'!$B$5:$G$56,6,0),"") -> 3ع ت01
A35: Classe2 | B35: =IFERROR(IF(ROWS($B$2:B35)>'بينات التلاميد'!$Q$5,"",INDEX('بينات التلاميد'!$B$5:$B$56,SMALL(IF('بينات التلاميد'!$B$5:$B$56<>"",ROW('بينات التلاميد'!$B$5:$B$56)-ROW($B$5)+1),ROWS($B$2:B35)))),"") -> سعاد12 | C35: =IFERROR(VLOOKUP(B35,'بينات التلاميد'!$B$5:$G$56,6,0),"") -> 3ع ت01
A36: Classe2 | B36: =IFERROR(IF(ROWS($B$2:B36)>'بينات التلاميد'!$Q$5,"",INDEX('بينات التلاميد'!$B$5:$B$56,SMALL(IF('بينات التلاميد'!$B$5:$B$56<>"",ROW('بينات التلاميد'!$B$5:$B$56)-ROW($B$5)+1),ROWS($B$2:B36)))),"") -> سعاد13 | C36: =IFERROR(VLOOKUP(B36,'بينات التلاميد'!$B$5:$G$56,6,0),"") -> 3ع ت01
A37: Classe2 | B37: =IFERROR(IF(ROWS($B$2:B37)>'بينات التلاميد'!$Q$5,"",INDEX('بينات التلاميد'!$B$5:$B$56,SMALL(IF('بينات التلاميد'!$B$5:$B$56<>"",ROW('بينات التلاميد'!$B$5:$B$56)-ROW($B$5)+1),ROWS($B$2:B37)))),"") -> سعاد14 | C37: =IFERROR(VLOOKUP(B37,'بينات التلاميد'!$B$5:$G$56,6,0),"") -> 3ع ت01
A38: Classe2 | B38: =IFERROR(IF(ROWS($B$2:B38)>'بينات التلاميد'!$Q$5,"",INDEX('بينات التلاميد'!$B$5:$B$56,SMALL(IF('بينات التلاميد'!$B$5:$B$56<>"",ROW('بينات التلاميد'!$B$5:$B$56)-ROW($B$5)+1),ROWS($B$2:B38)))),"") -> سعاد15 | C38: =IFERROR(VLOOKUP(B38,'بينات التلاميد'!$B$5:$G$56,6,0),"") -> 3ع ت01
A39: Classe2 | B39: =IFERROR(IF(ROWS($B$2:B39)>'بينات التلاميد'!$Q$5,"",INDEX('بينات التلاميد'!$B$5:$B$56,SMALL(IF('بينات التلاميد'!$B$5:$B$56<>"",ROW('بينات التلاميد'!$B$5:$B$56)-ROW($B$5)+1),ROWS($B$2:B39)))),"") -> سعاد16 | C39: =IFERROR(VLOOKUP(B39,'بينات التلاميد'!$B$5:$G$56,6,0),"") -> 3ع ت01
A40: Classe2 | B40: =IFERROR(IF(ROWS($B$2:B40)>'بينات التلاميد'!$Q$5,"",INDEX('بينات التلاميد'!$B$5:$B$56,SMALL(IF('بينات التلاميد'!$B$5:$B$56<>"",ROW('بينات التلاميد'!$B$5:$B$56)-ROW($B$5)+1),ROWS($B$2:B40)))),"") -> سعاد17 | C40: =IFERROR(VLOOKUP(B40,'بينات التلاميد'!$B$5:$G$56,6,0),"") -> 3ع ت01
A41: Classe2 | B41: =IFERROR(IF(ROWS($B$2:B41)>'بينات التلاميد'!$Q$5,"",INDEX('بينات التلاميد'!$B$5:$B$56,SMALL(IF('بينات التلاميد'!$B$5:$B$56<>"",ROW('بينات التلاميد'!$B$5:$B$56)-ROW($B$5)+1),ROWS($B$2:B41)))),"") -> سعاد18 | C41: =IFERROR(VLOOKUP(B41,'بينات التلاميد'!$B$5:$G$56,6,0),"") -> 3ع ت01
A42: Classe2 | B42: =IFERROR(IF(ROWS($B$2:B42)>'بينات التلاميد'!$Q$5,"",INDEX('بينات التلاميد'!$B$5:$B$56,SMALL(IF('بينات التلاميد'!$B$5:$B$56<>"",ROW('بينات التلاميد'!$B$5:$B$56)-ROW($B$5)+1),ROWS($B$2:B42)))),"") -> سعاد19 | C42: =IFERROR(VLOOKUP(B42,'بينات التلاميد'!$B$5:$G$56,6,0),"") -> 3ع ت01
A43: Classe2 | B43: =IFERROR(IF(ROWS($B$2:B43)>'بينات التلاميد'!$Q$5,"",INDEX('بينات التلاميد'!$B$5:$B$56,SMALL(IF('بينات التلاميد'!$B$5:$B$56<>"",ROW('بينات التلاميد'!$B$5:$B$56)-ROW($B$5)+1),ROWS($B$2:B43)))),"") -> سعاد20 | C43: =IFERROR(VLOOKUP(B43,'بينات التلاميد'!$B$5:$G$56,6,0),"") -> 3ع ت01
A44: Classe2 | B44: =IFERROR(IF(ROWS($B$2:B44)>'بينات التلاميد'!$Q$5,"",INDEX('بينات التلاميد'!$B$5:$B$56,SMALL(IF('بينات التلاميد'!$B$5:$B$56<>"",ROW('بينات التلاميد'!$B$5:$B$56)-ROW($B$5)+1),ROWS($B$2:B44)))),"") -> سعاد21 | C44: =IFERROR(VLOOKUP(B44,'بينات التلاميد'!$B$5:$G$56,6,0),"") -> 3ع ت01
A45: Classe2 | B45: =IFERROR(IF(ROWS($B$2:B45)>'بينات التلاميد'!$Q$5,"",INDEX('بينات التلاميد'!$B$5:$B$56,SMALL(IF('بينات التلاميد'!$B$5:$B$56<>"",ROW('بينات التلاميد'!$B$5:$B$56)-ROW($B$5)+1),ROWS($B$2:B45)))),"") -> سعاد22 | C45: =IFERROR(VLOOKUP(B45,'بينات التلاميد'!$B$5:$G$56,6,0),"") -> 3ع ت01
A46: Classe2 | B46: =IFERROR(IF(ROWS($B$2:B46)>'بينات التلاميد'!$Q$5,"",INDEX('بينات التلاميد'!$B$5:$B$56,SMALL(IF('بينات التلاميد'!$B$5:$B$56<>"",ROW('بينات التلاميد'!$B$5:$B$56)-ROW($B$5)+1),ROWS($B$2:B46)))),"") -> سعاد23 | C46: =IFERROR(VLOOKUP(B46,'بينات التلاميد'!$B$5:$G$56,6,0),"") -> 3ع ت01
A47: Classe2 | B47: =IFERROR(IF(ROWS($B$2:B47)>'بينات التلاميد'!$Q$5,"",INDEX('بينات التلاميد'!$B$5:$B$56,SMALL(IF('بينات التلاميد'!$B$5:$B$56<>"",ROW('بينات التلاميد'!$B$5:$B$56)-ROW($B$5)+1),ROWS($B$2:B47)))),"") -> سعاد24 | C47: =IFERROR(VLOOKUP(B47,'بينات التلاميد'!$B$5:$G$56,6,0),"") -> 3ع ت01
A48: Classe2 | B48: =IFERROR(IF(ROWS($B$2:B48)>'بينات التلاميد'!$Q$5,"",INDEX('بينات التلاميد'!$B$5:$B$56,SMALL(IF('بينات التلاميد'!$B$5:$B$56<>"",ROW('بينات التلاميد'!$B$5:$B$56)-ROW($B$5)+1),ROWS($B$2:B48)))),"") -> سعاد25 | C48: =IFERROR(VLOOKUP(B48,'بينات التلاميد'!$B$5:$G$56,6,0),"") -> 3ع ت01
B49: =IFERROR(IF(ROWS($B$2:B49)>'بينات التلاميد'!$Q$5,"",INDEX('بينات التلاميد'!$B$5:$B$56,SMALL(IF('بينات التلاميد'!$B$5:$B$56<>"",ROW('بينات التلاميد'!$B$5:$B$56)-ROW($B$5)+1),ROWS($B$2:B49)))),"") ->  | C49: =IFERROR(VLOOKUP(B49,'بينات التلاميد'!$B$5:$G$56,6,0),"") -> 
B50: =IFERROR(IF(ROWS($B$2:B50)>'بينات التلاميد'!$Q$5,"",INDEX('بينات التلاميد'!$B$5:$B$56,SMALL(IF('بينات التلاميد'!$B$5:$B$56<>"",ROW('بينات التلاميد'!$B$5:$B$56)-ROW($B$5)+1),ROWS($B$2:B50)))),"") ->  | C50: =IFERROR(VLOOKUP(B50,'بينات التلاميد'!$B$5:$G$56,6,0),"") -> 
B51: =IFERROR(IF(ROWS($B$2:B51)>'بينات التلاميد'!$Q$5,"",INDEX('بينات التلاميد'!$B$5:$B$56,SMALL(IF('بينات التلاميد'!$B$5:$B$56<>"",ROW('بينات التلاميد'!$B$5:$B$56)-ROW($B$5)+1),ROWS($B$2:B51)))),"") ->  | C51: =IFERROR(VLOOKUP(B51,'بينات التلاميد'!$B$5:$G$56,6,0),"") -> 
B52: =IFERROR(IF(ROWS($B$2:B52)>'بينات التلاميد'!$Q$5,"",INDEX('بينات التلاميد'!$B$5:$B$56,SMALL(IF('بينات التلاميد'!$B$5:$B$56<>"",ROW('بينات التلاميد'!$B$5:$B$56)-ROW($B$5)+1),ROWS($B$2:B52)))),"") ->  | C52: =IFERROR(VLOOKUP(B52,'بينات التلاميد'!$B$5:$G$56,6,0),"") -> 
B53: =IFERROR(IF(ROWS($B$2:B53)>'بينات التلاميد'!$Q$5,"",INDEX('بينات التلاميد'!$B$5:$B$56,SMALL(IF('بينات التلاميد'!$B$5:$B$56<>"",ROW('بينات التلاميد'!$B$5:$B$56)-ROW($B$5)+1),ROWS($B$2:B53)))),"") ->  | C53: =IFERROR(VLOOKUP(B53,'بينات التلاميد'!$B$5:$G$56,6,0),"") -> 
B54: =IFERROR(IF(ROWS($B$2:B54)>'بينات التلاميد'!$Q$5,"",INDEX('بينات التلاميد'!$B$5:$B$56,SMALL(IF('بينات التلاميد'!$B$5:$B$56<>"",ROW('بينات التلاميد'!$B$5:$B$56)-ROW($B$5)+1),ROWS($B$2:B54)))),"") ->  | C54: =IFERROR(VLOOKUP(B54,'بينات التلاميد'!$B$5:$G$56,6,0),"") -> 
B55: =IFERROR(IF(ROWS($B$2:B55)>'بينات التلاميد'!$Q$5,"",INDEX('بينات التلاميد'!$B$5:$B$56,SMALL(IF('بينات التلاميد'!$B$5:$B$56<>"",ROW('بينات التلاميد'!$B$5:$B$56)-ROW($B$5)+1),ROWS($B$2:B55)))),"") ->  | C55: =IFERROR(VLOOKUP(B55,'بينات التلاميد'!$B$5:$G$56,6,0),"") -> 
B56: =IFERROR(IF(ROWS($B$2:B56)>'بينات التلاميد'!$Q$5,"",INDEX('بينات التلاميد'!$B$5:$B$56,SMALL(IF('بينات التلاميد'!$B$5:$B$56<>"",ROW('بينات التلاميد'!$B$5:$B$56)-ROW($B$5)+1),ROWS($B$2:B56)))),"") ->  | C56: =IFERROR(VLOOKUP(B56,'بينات التلاميد'!$B$5:$G$56,6,0),"") -> 
B57: =IFERROR(IF(ROWS($B$2:B57)>'بينات التلاميد'!$Q$5,"",INDEX('بينات التلاميد'!$B$5:$B$56,SMALL(IF('بينات التلاميد'!$B$5:$B$56<>"",ROW('بينات التلاميد'!$B$5:$B$56)-ROW($B$5)+1),ROWS($B$2:B57)))),"") ->  | C57: =IFERROR(VLOOKUP(B57,'بينات التلاميد'!$B$5:$G$56,6,0),"") -> 
B58: =IFERROR(IF(ROWS($B$2:B58)>'بينات التلاميد'!$Q$5,"",INDEX('بينات التلاميد'!$B$5:$B$56,SMALL(IF('بينات التلاميد'!$B$5:$B$56<>"",ROW('بينات التلاميد'!$B$5:$B$56)-ROW($B$5)+1),ROWS($B$2:B58)))),"") ->  | C58: =IFERROR(VLOOKUP(B58,'بينات التلاميد'!$B$5:$G$56,6,0),"") -> 
B59: =IFERROR(IF(ROWS($B$2:B59)>'بينات التلاميد'!$Q$5,"",INDEX('بينات التلاميد'!$B$5:$B$56,SMALL(IF('بينات التلاميد'!$B$5:$B$56<>"",ROW('بينات التلاميد'!$B$5:$B$56)-ROW($B$5)+1),ROWS($B$2:B59)))),"") ->  | C59: =IFERROR(VLOOKUP(B59,'بينات التلاميد'!$B$5:$G$56,6,0),"") -> 
B60: =IFERROR(IF(ROWS($B$2:B60)>'بينات التلاميد'!$Q$5,"",INDEX('بينات التلاميد'!$B$5:$B$56,SMALL(IF('بينات التلاميد'!$B$5:$B$56<>"",ROW('بينات التلاميد'!$B$5:$B$56)-ROW($B$5)+1),ROWS($B$2:B60)))),"") ->  | C60: =IFERROR(VLOOKUP(B60,'بينات التلاميد'!$B$5:$G$56,6,0),"") -> 
B61: =IFERROR(IF(ROWS($B$2:B61)>'بينات التلاميد'!$Q$5,"",INDEX('بينات التلاميد'!$B$5:$B$56,SMALL(IF('بينات التلاميد'!$B$5:$B$56<>"",ROW('بينات التلاميد'!$B$5:$B$56)-ROW($B$5)+1),ROWS($B$2:B61)))),"") ->  | C61: =IFERROR(VLOOKUP(B61,'بينات التلاميد'!$B$5:$G$56,6,0),"") -> 
B62: =IFERROR(IF(ROWS($B$2:B62)>'بينات التلاميد'!$Q$5,"",INDEX('بينات التلاميد'!$B$5:$B$56,SMALL(IF('بينات التلاميد'!$B$5:$B$56<>"",ROW('بينات التلاميد'!$B$5:$B$56)-ROW($B$5)+1),ROWS($B$2:B62)))),"") ->  | C62: =IFERROR(VLOOKUP(B62,'بينات التلاميد'!$B$5:$G$56,6,0),"") -> 
B63: =IFERROR(IF(ROWS($B$2:B63)>'بينات التلاميد'!$Q$5,"",INDEX('بينات التلاميد'!$B$5:$B$56,SMALL(IF('بينات التلاميد'!$B$5:$B$56<>"",ROW('بينات التلاميد'!$B$5:$B$56)-ROW($B$5)+1),ROWS($B$2:B63)))),"") ->  | C63: =IFERROR(VLOOKUP(B63,'بينات التلاميد'!$B$5:$G$56,6,0),"") -> 
B64: =IFERROR(IF(ROWS($B$2:B64)>'بينات التلاميد'!$Q$5,"",INDEX('بينات التلاميد'!$B$5:$B$56,SMALL(IF('بينات التلاميد'!$B$5:$B$56<>"",ROW('بينات التلاميد'!$B$5:$B$56)-ROW($B$5)+1),ROWS($B$2:B64)))),"") ->  | C64: =IFERROR(VLOOKUP(B64,'بينات التلاميد'!$B$5:$G$56,6,0),"") -> 
B65: =IFERROR(IF(ROWS($B$2:B65)>'بينات التلاميد'!$Q$5,"",INDEX('بينات التلاميد'!$B$5:$B$56,SMALL(IF('بينات التلاميد'!$B$5:$B$56<>"",ROW('بينات التلاميد'!$B$5:$B$56)-ROW($B$5)+1),ROWS($B$2:B65)))),"") ->  | C65: =IFERROR(VLOOKUP(B65,'بينات التلاميد'!$B$5:$G$56,6,0),"") -> 
A66: =IFERROR(VLOOKUP(C66,$D$2:$E$20,2,0),"") ->  | B66: =IFERROR(IF(ROWS($B$2:B66)>'بينات التلاميد'!$Q$5,"",INDEX('بينات التلاميد'!$B$5:$B$56,SMALL(IF('بينات التلاميد'!$B$5:$B$56<>"",ROW('بينات التلاميد'!$B$5:$B$56)-ROW($B$5)+1),ROWS($B$2:B66)))),"") ->  | C66: =IFERROR(VLOOKUP(B66,'بينات التلاميد'!$B$5:$G$56,6,0),"") -> 
B67: =IFERROR(IF(ROWS($B$2:B67)>'بينات التلاميد'!$Q$5,"",INDEX('بينات التلاميد'!$B$5:$B$56,SMALL(IF('بينات التلاميد'!$B$5:$B$56<>"",ROW('بينات التلاميد'!$B$5:$B$56)-ROW($B$5)+1),ROWS($B$2:B67)))),"") ->  | C67: =IFERROR(VLOOKUP(B67,'بينات التلاميد'!$B$5:$G$56,6,0),"") -> 
B68: =IFERROR(IF(ROWS($B$2:B68)>'بينات التلاميد'!$Q$5,"",INDEX('بينات التلاميد'!$B$5:$B$56,SMALL(IF('بينات التلاميد'!$B$5:$B$56<>"",ROW('بينات التلاميد'!$B$5:$B$56)-ROW($B$5)+1),ROWS($B$2:B68)))),"") ->  | C68: =IFERROR(VLOOKUP(B68,'بينات التلاميد'!$B$5:$G$56,6,0),"") -> 
B69: =IFERROR(IF(ROWS($B$2:B69)>'بينات التلاميد'!$Q$5,"",INDEX('بينات التلاميد'!$B$5:$B$56,SMALL(IF('بينات التلاميد'!$B$5:$B$56<>"",ROW('بينات التلاميد'!$B$5:$B$56)-ROW($B$5)+1),ROWS($B$2:B69)))),"") ->  | C69: =IFERROR(VLOOKUP(B69,'بينات التلاميد'!$B$5:$G$56,6,0),"") -> 
B70: =IFERROR(IF(ROWS($B$2:B70)>'بينات التلاميد'!$Q$5,"",INDEX('بينات التلاميد'!$B$5:$B$56,SMALL(IF('بينات التلاميد'!$B$5:$B$56<>"",ROW('بينات التلاميد'!$B$5:$B$56)-ROW($B$5)+1),ROWS($B$2:B70)))),"") ->  | C70: =IFERROR(VLOOKUP(B70,'بينات التلاميد'!$B$5:$G$56,6,0),"") -> 
B71: =IFERROR(IF(ROWS($B$2:B71)>'بينات التلاميد'!$Q$5,"",INDEX('بينات التلاميد'!$B$5:$B$56,SMALL(IF('بينات التلاميد'!$B$5:$B$56<>"",ROW('بينات التلاميد'!$B$5:$B$56)-ROW($B$5)+1),ROWS($B$2:B71)))),"") ->  | C71: =IFERROR(VLOOKUP(B71,'بينات التلاميد'!$B$5:$G$56,6,0),"") -> 
B72: =IFERROR(IF(ROWS($B$2:B72)>'بينات التلاميد'!$Q$5,"",INDEX('بينات التلاميد'!$B$5:$B$56,SMALL(IF('بينات التلاميد'!$B$5:$B$56<>"",ROW('بينات التلاميد'!$B$5:$B$56)-ROW($B$5)+1),ROWS($B$2:B72)))),"") ->  | C72: =IFERROR(VLOOKUP(B72,'بينات التلاميد'!$B$5:$G$56,6,0),"") -> 
B73: =IFERROR(IF(ROWS($B$2:B73)>'بينات التلاميد'!$Q$5,"",INDEX('بينات التلاميد'!$B$5:$B$56,SMALL(IF('بينات التلاميد'!$B$5:$B$56<>"",ROW('بينات التلاميد'!$B$5:$B$56)-ROW($B$5)+1),ROWS($B$2:B73)))),"") ->  | C73: =IFERROR(VLOOKUP(B73,'بينات التلاميد'!$B$5:$G$56,6,0),"") -> 
B74: =IFERROR(IF(ROWS($B$2:B74)>'بينات التلاميد'!$Q$5,"",INDEX('بينات التلاميد'!$B$5:$B$56,SMALL(IF('بينات التلاميد'!$B$5:$B$56<>"",ROW('بينات التلاميد'!$B$5:$B$56)-ROW($B$5)+1),ROWS($B$2:B74)))),"") ->  | C74: =IFERROR(VLOOKUP(B74,'بينات التلاميد'!$B$5:$G$56,6,0),"") -> 
B75: =IFERROR(IF(ROWS($B$2:B75)>'بينات التلاميد'!$Q$5,"",INDEX('بينات التلاميد'!$B$5:$B$56,SMALL(IF('بينات التلاميد'!$B$5:$B$56<>"",ROW('بينات التلاميد'!$B$5:$B$56)-ROW($B$5)+1),ROWS($B$2:B75)))),"") ->  | C75: =IFERROR(VLOOKUP(B75,'بينات التلاميد'!$B$5:$G$56,6,0),"") -> 
B76: =IFERROR(IF(ROWS($B$2:B76)>'بينات التلاميد'!$Q$5,"",INDEX('بينات التلاميد'!$B$5:$B$56,SMALL(IF('بينات التلاميد'!$B$5:$B$56<>"",ROW('بينات التلاميد'!$B$5:$B$56)-ROW($B$5)+1),ROWS($B$2:B76)))),"") ->  | C76: =IFERROR(VLOOKUP(B76,'بينات التلاميد'!$B$5:$G$56,6,0),"") -> 
B77: =IFERROR(IF(ROWS($B$2:B77)>'بينات التلاميد'!$Q$5,"",INDEX('بينات التلاميد'!$B$5:$B$56,SMALL(IF('بينات التلاميد'!$B$5:$B$56<>"",ROW('بينات التلاميد'!$B$5:$B$56)-ROW($B$5)+1),ROWS($B$2:B77)))),"") ->  | C77: =IFERROR(VLOOKUP(B77,'بينات التلاميد'!$B$5:$G$56,6,0),"") -> 
B78: =IFERROR(IF(ROWS($B$2:B78)>'بينات التلاميد'!$Q$5,"",INDEX('بينات التلاميد'!$B$5:$B$56,SMALL(IF('بينات التلاميد'!$B$5:$B$56<>"",ROW('بينات التلاميد'!$B$5:$B$56)-ROW($B$5)+1),ROWS($B$2:B78)))),"") ->  | C78: =IFERROR(VLOOKUP(B78,'بينات التلاميد'!$B$5:$G$56,6,0),"") -> 
B79: =IFERROR(IF(ROWS($B$2:B79)>'بينات التلاميد'!$Q$5,"",INDEX('بينات التلاميد'!$B$5:$B$56,SMALL(IF('بينات التلاميد'!$B$5:$B$56<>"",ROW('بينات التلاميد'!$B$5:$B$56)-ROW($B$5)+1),ROWS($B$2:B79)))),"") ->  | C79: =IFERROR(VLOOKUP(B79,'بينات التلاميد'!$B$5:$G$56,6,0),"") -> 
B80: =IFERROR(IF(ROWS($B$2:B80)>'بينات التلاميد'!$Q$5,"",INDEX('بينات التلاميد'!$B$5:$B$56,SMALL(IF('بينات التلاميد'!$B$5:$B$56<>"",ROW('بينات التلاميد'!$B$5:$B$56)-ROW($B$5)+1),ROWS($B$2:B80)))),"") ->  | C80: =IFERROR(VLOOKUP(B80,'بينات التلاميد'!$B$5:$G$56,6,0),"") -> 
B81: =IFERROR(IF(ROWS($B$2:B81)>'بينات التلاميد'!$Q$5,"",INDEX('بينات التلاميد'!$B$5:$B$56,SMALL(IF('بينات التلاميد'!$B$5:$B$56<>"",ROW('بينات التلاميد'!$B$5:$B$56)-ROW($B$5)+1),ROWS($B$2:B81)))),"") ->  | C81: =IFERROR(VLOOKUP(B81,'بينات التلاميد'!$B$5:$G$56,6,0),"") -> 
B82: =IFERROR(IF(ROWS($B$2:B82)>'بينات التلاميد'!$Q$5,"",INDEX('بينات التلاميد'!$B$5:$B$56,SMALL(IF('بينات التلاميد'!$B$5:$B$56<>"",ROW('بينات التلاميد'!$B$5:$B$56)-ROW($B$5)+1),ROWS($B$2:B82)))),"") ->  | C82: =IFERROR(VLOOKUP(B82,'بينات التلاميد'!$B$5:$G$56,6,0),"") -> 
B83: =IFERROR(IF(ROWS($B$2:B83)>'بينات التلاميد'!$Q$5,"",INDEX('بينات التلاميد'!$B$5:$B$56,SMALL(IF('بينات التلاميد'!$B$5:$B$56<>"",ROW('بينات التلاميد'!$B$5:$B$56)-ROW($B$5)+1),ROWS($B$2:B83)))),"") ->  | C83: =IFERROR(VLOOKUP(B83,'بينات التلاميد'!$B$5:$G$56,6,0),"") -> 
B84: =IFERROR(IF(ROWS($B$2:B84)>'بينات التلاميد'!$Q$5,"",INDEX('بينات التلاميد'!$B$5:$B$56,SMALL(IF('بينات التلاميد'!$B$5:$B$56<>"",ROW('بينات التلاميد'!$B$5:$B$56)-ROW($B$5)+1),ROWS($B$2:B84)))),"") ->  | C84: =IFERROR(VLOOKUP(B84,'بينات التلاميد'!$B$5:$G$56,6,0),"") -> 
B85: =IFERROR(IF(ROWS($B$2:B85)>'بينات التلاميد'!$Q$5,"",INDEX('بينات التلاميد'!$B$5:$B$56,SMALL(IF('بينات التلاميد'!$B$5:$B$56<>"",ROW('بينات التلاميد'!$B$5:$B$56)-ROW($B$5)+1),ROWS($B$2:B85)))),"") ->  | C85: =IFERROR(VLOOKUP(B85,'بينات التلاميد'!$B$5:$G$56,6,0),"") -> 
B86: =IFERROR(IF(ROWS($B$2:B86)>'بينات التلاميد'!$Q$5,"",INDEX('بينات التلاميد'!$B$5:$B$56,SMALL(IF('بينات التلاميد'!$B$5:$B$56<>"",ROW('بينات التلاميد'!$B$5:$B$56)-ROW($B$5)+1),ROWS($B$2:B86)))),"") ->  | C86: =IFERROR(VLOOKUP(B86,'بينات التلاميد'!$B$5:$G$56,6,0),"") -> 
B87: =IFERROR(IF(ROWS($B$2:B87)>'بينات التلاميد'!$Q$5,"",INDEX('بينات التلاميد'!$B$5:$B$56,SMALL(IF('بينات التلاميد'!$B$5:$B$56<>"",ROW('بينات التلاميد'!$B$5:$B$56)-ROW($B$5)+1),ROWS($B$2:B87)))),"") ->  | C87: =IFERROR(VLOOKUP(B87,'بينات التلاميد'!$B$5:$G$56,6,0),"") -> 
B88: =IFERROR(IF(ROWS($B$2:B88)>'بينات التلاميد'!$Q$5,"",INDEX('بينات التلاميد'!$B$5:$B$56,SMALL(IF('بينات التلاميد'!$B$5:$B$56<>"",ROW('بينات التلاميد'!$B$5:$B$56)-ROW($B$5)+1),ROWS($B$2:B88)))),"") ->  | C88: =IFERROR(VLOOKUP(B88,'بينات التلاميد'!$B$5:$G$56,6,0),"") -> 
B89: =IFERROR(IF(ROWS($B$2:B89)>'بينات التلاميد'!$Q$5,"",INDEX('بينات التلاميد'!$B$5:$B$56,SMALL(IF('بينات التلاميد'!$B$5:$B$56<>"",ROW('بينات التلاميد'!$B$5:$B$56)-ROW($B$5)+1),ROWS($B$2:B89)))),"") ->  | C89: =IFERROR(VLOOKUP(B89,'بينات التلاميد'!$B$5:$G$56,6,0),"") -> 
B90: =IFERROR(IF(ROWS($B$2:B90)>'بينات التلاميد'!$Q$5,"",INDEX('بينات التلاميد'!$B$5:$B$56,SMALL(IF('بينات التلاميد'!$B$5:$B$56<>"",ROW('بينات التلاميد'!$B$5:$B$56)-ROW($B$5)+1),ROWS($B$2:B90)))),"") ->  | C90: =IFERROR(VLOOKUP(B90,'بينات التلاميد'!$B$5:$G$56,6,0),"") -> 
B91: =IFERROR(IF(ROWS($B$2:B91)>'بينات التلاميد'!$Q$5,"",INDEX('بينات التلاميد'!$B$5:$B$56,SMALL(IF('بينات التلاميد'!$B$5:$B$56<>"",ROW('بينات التلاميد'!$B$5:$B$56)-ROW($B$5)+1),ROWS($B$2:B91)))),"") ->  | C91: =IFERROR(VLOOKUP(B91,'بينات التلاميد'!$B$5:$G$56,6,0),"") -> 
B92: =IFERROR(IF(ROWS($B$2:B92)>'بينات التلاميد'!$Q$5,"",INDEX('بينات التلاميد'!$B$5:$B$56,SMALL(IF('بينات التلاميد'!$B$5:$B$56<>"",ROW('بينات التلاميد'!$B$5:$B$56)-ROW($B$5)+1),ROWS($B$2:B92)))),"") ->  | C92: =IFERROR(VLOOKUP(B92,'بينات التلاميد'!$B$5:$G$56,6,0),"") -> 
B93: =IFERROR(IF(ROWS($B$2:B93)>'بينات التلاميد'!$Q$5,"",INDEX('بينات التلاميد'!$B$5:$B$56,SMALL(IF('بينات التلاميد'!$B$5:$B$56<>"",ROW('بينات التلاميد'!$B$5:$B$56)-ROW($B$5)+1),ROWS($B$2:B93)))),"") ->  | C93: =IFERROR(VLOOKUP(B93,'بينات التلاميد'!$B$5:$G$56,6,0),"") -> 
B94: =IFERROR(IF(ROWS($B$2:B94)>'بينات التلاميد'!$Q$5,"",INDEX('بينات التلاميد'!$B$5:$B$56,SMALL(IF('بينات التلاميد'!$B$5:$B$56<>"",ROW('بينات التلاميد'!$B$5:$B$56)-ROW($B$5)+1),ROWS($B$2:B94)))),"") ->  | C94: =IFERROR(VLOOKUP(B94,'بينات التلاميد'!$B$5:$G$56,6,0),"") -> 
B95: =IFERROR(IF(ROWS($B$2:B95)>'بينات التلاميد'!$Q$5,"",INDEX('بينات التلاميد'!$B$5:$B$56,SMALL(IF('بينات التلاميد'!$B$5:$B$56<>"",ROW('بينات التلاميد'!$B$5:$B$56)-ROW($B$5)+1),ROWS($B$2:B95)))),"") ->  | C95: =IFERROR(VLOOKUP(B95,'بينات التلاميد'!$B$5:$G$56,6,0),"") -> 
B96: =IFERROR(IF(ROWS($B$2:B96)>'بينات التلاميد'!$Q$5,"",INDEX('بينات التلاميد'!$B$5:$B$56,SMALL(IF('بينات التلاميد'!$B$5:$B$56<>"",ROW('بينات التلاميد'!$B$5:$B$56)-ROW($B$5)+1),ROWS($B$2:B96)))),"") ->  | C96: =IFERROR(VLOOKUP(B96,'بينات التلاميد'!$B$5:$G$56,6,0),"") -> 
B97: =IFERROR(IF(ROWS($B$2:B97)>'بينات التلاميد'!$Q$5,"",INDEX('بينات التلاميد'!$B$5:$B$56,SMALL(IF('بينات التلاميد'!$B$5:$B$56<>"",ROW('بينات التلاميد'!$B$5:$B$56)-ROW($B$5)+1),ROWS($B$2:B97)))),"") ->  | C97: =IFERROR(VLOOKUP(B97,'بينات التلاميد'!$B$5:$G$56,6,0),"") -> 
B98: =IFERROR(IF(ROWS($B$2:B98)>'بينات التلاميد'!$Q$5,"",INDEX('بينات التلاميد'!$B$5:$B$56,SMALL(IF('بينات التلاميد'!$B$5:$B$56<>"",ROW('بينات التلاميد'!$B$5:$B$56)-ROW($B$5)+1),ROWS($B$2:B98)))),"") ->  | C98: =IFERROR(VLOOKUP(B98,'بينات التلاميد'!$B$5:$G$56,6,0),"") -> 
B99: =IFERROR(IF(ROWS($B$2:B99)>'بينات التلاميد'!$Q$5,"",INDEX('بينات التلاميد'!$B$5:$B$56,SMALL(IF('بينات التلاميد'!$B$5:$B$56<>"",ROW('بينات التلاميد'!$B$5:$B$56)-ROW($B$5)+1),ROWS($B$2:B99)))),"") ->  | C99: =IFERROR(VLOOKUP(B99,'بينات التلاميد'!$B$5:$G$56,6,0),"") -> 
B100: =IFERROR(IF(ROWS($B$2:B100)>'بينات التلاميد'!$Q$5,"",INDEX('بينات التلاميد'!$B$5:$B$56,SMALL(IF('بينات التلاميد'!$B$5:$B$56<>"",ROW('بينات التلاميد'!$B$5:$B$56)-ROW($B$5)+1),ROWS($B$2:B100)))),"") ->  | C100: =IFERROR(VLOOKUP(B100,'بينات التلاميد'!$B$5:$G$56,6,0),"") -> 
B101: =IFERROR(IF(ROWS($B$2:B101)>'بينات التلاميد'!$Q$5,"",INDEX('بينات التلاميد'!$B$5:$B$56,SMALL(IF('بينات التلاميد'!$B$5:$B$56<>"",ROW('بينات التلاميد'!$B$5:$B$56)-ROW($B$5)+1),ROWS($B$2:B101)))),"") ->  | C101: =IFERROR(VLOOKUP(B101,'بينات التلاميد'!$B$5:$G$56,6,0),"") -> 
B102: =IFERROR(IF(ROWS($B$2:B102)>'بينات التلاميد'!$Q$5,"",INDEX('بينات التلاميد'!$B$5:$B$56,SMALL(IF('بينات التلاميد'!$B$5:$B$56<>"",ROW('بينات التلاميد'!$B$5:$B$56)-ROW($B$5)+1),ROWS($B$2:B102)))),"") ->  | C102: =IFERROR(VLOOKUP(B102,'بينات التلاميد'!$B$5:$G$56,6,0),"") -> 
B103: =IFERROR(IF(ROWS($B$2:B103)>'بينات التلاميد'!$Q$5,"",INDEX('بينات التلاميد'!$B$5:$B$56,SMALL(IF('بينات التلاميد'!$B$5:$B$56<>"",ROW('بينات التلاميد'!$B$5:$B$56)-ROW($B$5)+1),ROWS($B$2:B103)))),"") ->  | C103: =IFERROR(VLOOKUP(B103,'بينات التلاميد'!$B$5:$G$56,6,0),"") -> 
B104: =IFERROR(IF(ROWS($B$2:B104)>'بينات التلاميد'!$Q$5,"",INDEX('بينات التلاميد'!$B$5:$B$56,SMALL(IF('بينات التلاميد'!$B$5:$B$56<>"",ROW('بينات التلاميد'!$B$5:$B$56)-ROW($B$5)+1),ROWS($B$2:B104)))),"") ->  | C104: =IFERROR(VLOOKUP(B104,'بينات التلاميد'!$B$5:$G$56,6,0),"") -> 
B105: =IFERROR(IF(ROWS($B$2:B105)>'بينات التلاميد'!$Q$5,"",INDEX('بينات التلاميد'!$B$5:$B$56,SMALL(IF('بينات التلاميد'!$B$5:$B$56<>"",ROW('بينات التلاميد'!$B$5:$B$56)-ROW($B$5)+1),ROWS($B$2:B105)))),"") ->  | C105: =IFERROR(VLOOKUP(B105,'بينات التلاميد'!$B$5:$G$56,6,0),"") -> 
B106: =IFERROR(IF(ROWS($B$2:B106)>'بينات التلاميد'!$Q$5,"",INDEX('بينات التلاميد'!$B$5:$B$56,SMALL(IF('بينات التلاميد'!$B$5:$B$56<>"",ROW('بينات التلاميد'!$B$5:$B$56)-ROW($B$5)+1),ROWS($B$2:B106)))),"") ->  | C106: =IFERROR(VLOOKUP(B106,'بينات التلاميد'!$B$5:$G$56,6,0),"") -> 
B107: =IFERROR(IF(ROWS($B$2:B107)>'بينات التلاميد'!$Q$5,"",INDEX('بينات التلاميد'!$B$5:$B$56,SMALL(IF('بينات التلاميد'!$B$5:$B$56<>"",ROW('بينات التلاميد'!$B$5:$B$56)-ROW($B$5)+1),ROWS($B$2:B107)))),"") ->  | C107: =IFERROR(VLOOKUP(B107,'بينات التلاميد'!$B$5:$G$56,6,0),"") -> 
B108: =IFERROR(IF(ROWS($B$2:B108)>'بينات التلاميد'!$Q$5,"",INDEX('بينات التلاميد'!$B$5:$B$56,SMALL(IF('بينات التلاميد'!$B$5:$B$56<>"",ROW('بينات التلاميد'!$B$5:$B$56)-ROW($B$5)+1),ROWS($B$2:B108)))),"") ->  | C108: =IFERROR(VLOOKUP(B108,'بينات التلاميد'!$B$5:$G$56,6,0),"") -> 
B109: =IFERROR(IF(ROWS($B$2:B109)>'بينات التلاميد'!$Q$5,"",INDEX('بينات التلاميد'!$B$5:$B$56,SMALL(IF('بينات التلاميد'!$B$5:$B$56<>"",ROW('بينات التلاميد'!$B$5:$B$56)-ROW($B$5)+1),ROWS($B$2:B109)))),"") ->  | C109: =IFERROR(VLOOKUP(B109,'بينات التلاميد'!$B$5:$G$56,6,0),"") -> 
B110: =IFERROR(IF(ROWS($B$2:B110)>'بينات التلاميد'!$Q$5,"",INDEX('بينات التلاميد'!$B$5:$B$56,SMALL(IF('بينات التلاميد'!$B$5:$B$56<>"",ROW('بينات التلاميد'!$B$5:$B$56)-ROW($B$5)+1),ROWS($B$2:B110)))),"") ->  | C110: =IFERROR(VLOOKUP(B110,'بينات التلاميد'!$B$5:$G$56,6,0),"") -> 
B111: =IFERROR(IF(ROWS($B$2:B111)>'بينات التلاميد'!$Q$5,"",INDEX('بينات التلاميد'!$B$5:$B$56,SMALL(IF('بينات التلاميد'!$B$5:$B$56<>"",ROW('بينات التلاميد'!$B$5:$B$56)-ROW($B$5)+1),ROWS($B$2:B111)))),"") ->  | C111: =IFERROR(VLOOKUP(B111,'بينات التلاميد'!$B$5:$G$56,6,0),"") -> 
B112: =IFERROR(IF(ROWS($B$2:B112)>'بينات التلاميد'!$Q$5,"",INDEX('بينات التلاميد'!$B$5:$B$56,SMALL(IF('بينات التلاميد'!$B$5:$B$56<>"",ROW('بينات التلاميد'!$B$5:$B$56)-ROW($B$5)+1),ROWS($B$2:B112)))),"") ->  | C112: =IFERROR(VLOOKUP(B112,'بينات التلاميد'!$B$5:$G$56,6,0),"") -> 
B113: =IFERROR(IF(ROWS($B$2:B113)>'بينات التلاميد'!$Q$5,"",INDEX('بينات التلاميد'!$B$5:$B$56,SMALL(IF('بينات التلاميد'!$B$5:$B$56<>"",ROW('بينات التلاميد'!$B$5:$B$56)-ROW($B$5)+1),ROWS($B$2:B113)))),"") ->  | C113: =IFERROR(VLOOKUP(B113,'بينات التلاميد'!$B$5:$G$56,6,0),"") -> 
B114: =IFERROR(IF(ROWS($B$2:B114)>'بينات التلاميد'!$Q$5,"",INDEX('بينات التلاميد'!$B$5:$B$56,SMALL(IF('بينات التلاميد'!$B$5:$B$56<>"",ROW('بينات التلاميد'!$B$5:$B$56)-ROW($B$5)+1),ROWS($B$2:B114)))),"") ->  | C114: =IFERROR(VLOOKUP(B114,'بينات التلاميد'!$B$5:$G$56,6,0),"") -> 
B115: =IFERROR(IF(ROWS($B$2:B115)>'بينات التلاميد'!$Q$5,"",INDEX('بينات التلاميد'!$B$5:$B$56,SMALL(IF('بينات التلاميد'!$B$5:$B$56<>"",ROW('بينات التلاميد'!$B$5:$B$56)-ROW($B$5)+1),ROWS($B$2:B115)))),"") ->  | C115: =IFERROR(VLOOKUP(B115,'بينات التلاميد'!$B$5:$G$56,6,0),"") -> 
B116: =IFERROR(IF(ROWS($B$2:B116)>'بينات التلاميد'!$Q$5,"",INDEX('بينات التلاميد'!$B$5:$B$56,SMALL(IF('بينات التلاميد'!$B$5:$B$56<>"",ROW('بينات التلاميد'!$B$5:$B$56)-ROW($B$5)+1),ROWS($B$2:B116)))),"") ->  | C116: =IFERROR(VLOOKUP(B116,'بينات التلاميد'!$B$5:$G$56,6,0),"") -> 
B117: =IFERROR(IF(ROWS($B$2:B117)>'بينات التلاميد'!$Q$5,"",INDEX('بينات التلاميد'!$B$5:$B$56,SMALL(IF('بينات التلاميد'!$B$5:$B$56<>"",ROW('بينات التلاميد'!$B$5:$B$56)-ROW($B$5)+1),ROWS($B$2:B117)))),"") ->  | C117: =IFERROR(VLOOKUP(B117,'بينات التلاميد'!$B$5:$G$56,6,0),"") -> 
B118: =IFERROR(IF(ROWS($B$2:B118)>'بينات التلاميد'!$Q$5,"",INDEX('بينات التلاميد'!$B$5:$B$56,SMALL(IF('بينات التلاميد'!$B$5:$B$56<>"",ROW('بينات التلاميد'!$B$5:$B$56)-ROW($B$5)+1),ROWS($B$2:B118)))),"") ->  | C118: =IFERROR(VLOOKUP(B118,'بينات التلاميد'!$B$5:$G$56,6,0),"") -> 
B119: =IFERROR(IF(ROWS($B$2:B119)>'بينات التلاميد'!$Q$5,"",INDEX('بينات التلاميد'!$B$5:$B$56,SMALL(IF('بينات التلاميد'!$B$5:$B$56<>"",ROW('بينات التلاميد'!$B$5:$B$56)-ROW($B$5)+1),ROWS($B$2:B119)))),"") ->  | C119: =IFERROR(VLOOKUP(B119,'بينات التلاميد'!$B$5:$G$56,6,0),"") -> 
B120: =IFERROR(IF(ROWS($B$2:B120)>'بينات التلاميد'!$Q$5,"",INDEX('بينات التلاميد'!$B$5:$B$56,SMALL(IF('بينات التلاميد'!$B$5:$B$56<>"",ROW('بينات التلاميد'!$B$5:$B$56)-ROW($B$5)+1),ROWS($B$2:B120)))),"") ->  | C120: =IFERROR(VLOOKUP(B120,'بينات التلاميد'!$B$5:$G$56,6,0),"") -> 
B121: =IFERROR(IF(ROWS($B$2:B121)>'بينات التلاميد'!$Q$5,"",INDEX('بينات التلاميد'!$B$5:$B$56,SMALL(IF('بينات التلاميد'!$B$5:$B$56<>"",ROW('بينات التلاميد'!$B$5:$B$56)-ROW($B$5)+1),ROWS($B$2:B121)))),"") ->  | C121: =IFERROR(VLOOKUP(B121,'بينات التلاميد'!$B$5:$G$56,6,0),"") -> 
B122: =IFERROR(IF(ROWS($B$2:B122)>'بينات التلاميد'!$Q$5,"",INDEX('بينات التلاميد'!$B$5:$B$56,SMALL(IF('بينات التلاميد'!$B$5:$B$56<>"",ROW('بينات التلاميد'!$B$5:$B$56)-ROW($B$5)+1),ROWS($B$2:B122)))),"") ->  | C122: =IFERROR(VLOOKUP(B122,'بينات التلاميد'!$B$5:$G$56,6,0),"") -> 
B123: =IFERROR(IF(ROWS($B$2:B123)>'بينات التلاميد'!$Q$5,"",INDEX('بينات التلاميد'!$B$5:$B$56,SMALL(IF('بينات التلاميد'!$B$5:$B$56<>"",ROW('بينات التلاميد'!$B$5:$B$56)-ROW($B$5)+1),ROWS($B$2:B123)))),"") ->  | C123: =IFERROR(VLOOKUP(B123,'بينات التلاميد'!$B$5:$G$56,6,0),"") -> 
B124: =IFERROR(IF(ROWS($B$2:B124)>'بينات التلاميد'!$Q$5,"",INDEX('بينات التلاميد'!$B$5:$B$56,SMALL(IF('بينات التلاميد'!$B$5:$B$56<>"",ROW('بينات التلاميد'!$B$5:$B$56)-ROW($B$5)+1),ROWS($B$2:B124)))),"") ->  | C124: =IFERROR(VLOOKUP(B124,'بينات التلاميد'!$B$5:$G$56,6,0),"") -> 
B125: =IFERROR(IF(ROWS($B$2:B125)>'بينات التلاميد'!$Q$5,"",INDEX('بينات التلاميد'!$B$5:$B$56,SMALL(IF('بينات التلاميد'!$B$5:$B$56<>"",ROW('بينات التلاميد'!$B$5:$B$56)-ROW($B$5)+1),ROWS($B$2:B125)))),"") ->  | C125: =IFERROR(VLOOKUP(B125,'بينات التلاميد'!$B$5:$G$56,6,0),"") -> 
B126: =IFERROR(IF(ROWS($B$2:B126)>'بينات التلاميد'!$Q$5,"",INDEX('بينات التلاميد'!$B$5:$B$56,SMALL(IF('بينات التلاميد'!$B$5:$B$56<>"",ROW('بينات التلاميد'!$B$5:$B$56)-ROW($B$5)+1),ROWS($B$2:B126)))),"") ->  | C126: =IFERROR(VLOOKUP(B126,'بينات التلاميد'!$B$5:$G$56,6,0),"") -> 
B127: =IFERROR(IF(ROWS($B$2:B127)>'بينات التلاميد'!$Q$5,"",INDEX('بينات التلاميد'!$B$5:$B$56,SMALL(IF('بينات التلاميد'!$B$5:$B$56<>"",ROW('بينات التلاميد'!$B$5:$B$56)-ROW($B$5)+1),ROWS($B$2:B127)))),"") ->  | C127: =IFERROR(VLOOKUP(B127,'بينات التلاميد'!$B$5:$G$56,6,0),"") -> 
B128: =IFERROR(IF(ROWS($B$2:B128)>'بينات التلاميد'!$Q$5,"",INDEX('بينات التلاميد'!$B$5:$B$56,SMALL(IF('بينات التلاميد'!$B$5:$B$56<>"",ROW('بينات التلاميد'!$B$5:$B$56)-ROW($B$5)+1),ROWS($B$2:B128)))),"") ->  | C128: =IFERROR(VLOOKUP(B128,'بينات التلاميد'!$B$5:$G$56,6,0),"") -> 
B129: =IFERROR(IF(ROWS($B$2:B129)>'بينات التلاميد'!$Q$5,"",INDEX('بينات التلاميد'!$B$5:$B$56,SMALL(IF('بينات التلاميد'!$B$5:$B$56<>"",ROW('بينات التلاميد'!$B$5:$B$56)-ROW($B$5)+1),ROWS($B$2:B129)))),"") ->  | C129: =IFERROR(VLOOKUP(B129,'بينات التلاميد'!$B$5:$G$56,6,0),"") -> 
A130: =IFERROR(VLOOKUP(C130,$D$2:$E$20,2,0),"") ->  | B130: =IFERROR(IF(ROWS($B$2:B130)>'بينات التلاميد'!$Q$5,"",INDEX('بينات التلاميد'!$B$5:$B$56,SMALL(IF('بينات التلاميد'!$B$5:$B$56<>"",ROW('بينات التلاميد'!$B$5:$B$56)-ROW($B$5)+1),ROWS($B$2:B130)))),"") ->  | C130: =IFERROR(VLOOKUP(B130,'بينات التلاميد'!$B$5:$G$56,6,0),"") -> 
B131: =IFERROR(IF(ROWS($B$2:B131)>'بينات التلاميد'!$Q$5,"",INDEX('بينات التلاميد'!$B$5:$B$56,SMALL(IF('بينات التلاميد'!$B$5:$B$56<>"",ROW('بينات التلاميد'!$B$5:$B$56)-ROW($B$5)+1),ROWS($B$2:B131)))),"") ->  | C131: =IFERROR(VLOOKUP(B131,'بينات التلاميد'!$B$5:$G$56,6,0),"") -> 
B132: =IFERROR(IF(ROWS($B$2:B132)>'بينات التلاميد'!$Q$5,"",INDEX('بينات التلاميد'!$B$5:$B$56,SMALL(IF('بينات التلاميد'!$B$5:$B$56<>"",ROW('بينات التلاميد'!$B$5:$B$56)-ROW($B$5)+1),ROWS($B$2:B132)))),"") ->  | C132: =IFERROR(VLOOKUP(B132,'بينات التلاميد'!$B$5:$G$56,6,0),"") -> 
B133: =IFERROR(IF(ROWS($B$2:B133)>'بينات التلاميد'!$Q$5,"",INDEX('بينات التلاميد'!$B$5:$B$56,SMALL(IF('بينات التلاميد'!$B$5:$B$56<>"",ROW('بينات التلاميد'!$B$5:$B$56)-ROW($B$5)+1),ROWS($B$2:B133)))),"") ->  | C133: =IFERROR(VLOOKUP(B133,'بينات التلاميد'!$B$5:$G$56,6,0),"") -> 
B134: =IFERROR(IF(ROWS($B$2:B134)>'بينات التلاميد'!$Q$5,"",INDEX('بينات التلاميد'!$B$5:$B$56,SMALL(IF('بينات التلاميد'!$B$5:$B$56<>"",ROW('بينات التلاميد'!$B$5:$B$56)-ROW($B$5)+1),ROWS($B$2:B134)))),"") ->  | C134: =IFERROR(VLOOKUP(B134,'بينات التلاميد'!$B$5:$G$56,6,0),"") -> 
B135: =IFERROR(IF(ROWS($B$2:B135)>'بينات التلاميد'!$Q$5,"",INDEX('بينات التلاميد'!$B$5:$B$56,SMALL(IF('بينات التلاميد'!$B$5:$B$56<>"",ROW('بينات التلاميد'!$B$5:$B$56)-ROW($B$5)+1),ROWS($B$2:B135)))),"") ->  | C135: =IFERROR(VLOOKUP(B135,'بينات التلاميد'!$B$5:$G$56,6,0),"") -> 
B136: =IFERROR(IF(ROWS($B$2:B136)>'بينات التلاميد'!$Q$5,"",INDEX('بينات التلاميد'!$B$5:$B$56,SMALL(IF('بينات التلاميد'!$B$5:$B$56<>"",ROW('بينات التلاميد'!$B$5:$B$56)-ROW($B$5)+1),ROWS($B$2:B136)))),"") ->  | C136: =IFERROR(VLOOKUP(B136,'بينات التلاميد'!$B$5:$G$56,6,0),"") -> 
B137: =IFERROR(IF(ROWS($B$2:B137)>'بينات التلاميد'!$Q$5,"",INDEX('بينات التلاميد'!$B$5:$B$56,SMALL(IF('بينات التلاميد'!$B$5:$B$56<>"",ROW('بينات التلاميد'!$B$5:$B$56)-ROW($B$5)+1),ROWS($B$2:B137)))),"") ->  | C137: =IFERROR(VLOOKUP(B137,'بينات التلاميد'!$B$5:$G$56,6,0),"") -> 
B138: =IFERROR(IF(ROWS($B$2:B138)>'بينات التلاميد'!$Q$5,"",INDEX('بينات التلاميد'!$B$5:$B$56,SMALL(IF('بينات التلاميد'!$B$5:$B$56<>"",ROW('بينات التلاميد'!$B$5:$B$56)-ROW($B$5)+1),ROWS($B$2:B138)))),"") ->  | C138: =IFERROR(VLOOKUP(B138,'بينات التلاميد'!$B$5:$G$56,6,0),"") -> 
B139: =IFERROR(IF(ROWS($B$2:B139)>'بينات التلاميد'!$Q$5,"",INDEX('بينات التلاميد'!$B$5:$B$56,SMALL(IF('بينات التلاميد'!$B$5:$B$56<>"",ROW('بينات التلاميد'!$B$5:$B$56)-ROW($B$5)+1),ROWS($B$2:B139)))),"") ->  | C139: =IFERROR(VLOOKUP(B139,'بينات التلاميد'!$B$5:$G$56,6,0),"") -> 
B140: =IFERROR(IF(ROWS($B$2:B140)>'بينات التلاميد'!$Q$5,"",INDEX('بينات التلاميد'!$B$5:$B$56,SMALL(IF('بينات التلاميد'!$B$5:$B$56<>"",ROW('بينات التلاميد'!$B$5:$B$56)-ROW($B$5)+1),ROWS($B$2:B140)))),"") ->  | C140: =IFERROR(VLOOKUP(B140,'بينات التلاميد'!$B$5:$G$56,6,0),"") -> 
B141: =IFERROR(IF(ROWS($B$2:B141)>'بينات التلاميد'!$Q$5,"",INDEX('بينات التلاميد'!$B$5:$B$56,SMALL(IF('بينات التلاميد'!$B$5:$B$56<>"",ROW('بينات التلاميد'!$B$5:$B$56)-ROW($B$5)+1),ROWS($B$2:B141)))),"") ->  | C141: =IFERROR(VLOOKUP(B141,'بينات التلاميد'!$B$5:$G$56,6,0),"") -> 
B142: =IFERROR(IF(ROWS($B$2:B142)>'بينات التلاميد'!$Q$5,"",INDEX('بينات التلاميد'!$B$5:$B$56,SMALL(IF('بينات التلاميد'!$B$5:$B$56<>"",ROW('بينات التلاميد'!$B$5:$B$56)-ROW($B$5)+1),ROWS($B$2:B142)))),"") ->  | C142: =IFERROR(VLOOKUP(B142,'بينات التلاميد'!$B$5:$G$56,6,0),"") -> 
B143: =IFERROR(IF(ROWS($B$2:B143)>'بينات التلاميد'!$Q$5,"",INDEX('بينات التلاميد'!$B$5:$B$56,SMALL(IF('بينات التلاميد'!$B$5:$B$56<>"",ROW('بينات التلاميد'!$B$5:$B$56)-ROW($B$5)+1),ROWS($B$2:B143)))),"") ->  | C143: =IFERROR(VLOOKUP(B143,'بينات التلاميد'!$B$5:$G$56,6,0),"") -> 
B144: =IFERROR(IF(ROWS($B$2:B144)>'بينات التلاميد'!$Q$5,"",INDEX('بينات التلاميد'!$B$5:$B$56,SMALL(IF('بينات التلاميد'!$B$5:$B$56<>"",ROW('بينات التلاميد'!$B$5:$B$56)-ROW($B$5)+1),ROWS($B$2:B144)))),"") ->  | C144: =IFERROR(VLOOKUP(B144,'بينات التلاميد'!$B$5:$G$56,6,0),"") -> 
B145: =IFERROR(IF(ROWS($B$2:B145)>'بينات التلاميد'!$Q$5,"",INDEX('بينات التلاميد'!$B$5:$B$56,SMALL(IF('بينات التلاميد'!$B$5:$B$56<>"",ROW('بينات التلاميد'!$B$5:$B$56)-ROW($B$5)+1),ROWS($B$2:B145)))),"") ->  | C145: =IFERROR(VLOOKUP(B145,'بينات التلاميد'!$B$5:$G$56,6,0),"") -> 
B146: =IFERROR(IF(ROWS($B$2:B146)>'بينات التلاميد'!$Q$5,"",INDEX('بينات التلاميد'!$B$5:$B$56,SMALL(IF('بينات التلاميد'!$B$5:$B$56<>"",ROW('بينات التلاميد'!$B$5:$B$56)-ROW($B$5)+1),ROWS($B$2:B146)))),"") ->  | C146: =IFERROR(VLOOKUP(B146,'بينات التلاميد'!$B$5:$G$56,6,0),"") -> 
B147: =IFERROR(IF(ROWS($B$2:B147)>'بينات التلاميد'!$Q$5,"",INDEX('بينات التلاميد'!$B$5:$B$56,SMALL(IF('بينات التلاميد'!$B$5:$B$56<>"",ROW('بينات التلاميد'!$B$5:$B$56)-ROW($B$5)+1),ROWS($B$2:B147)))),"") ->  | C147: =IFERROR(VLOOKUP(B147,'بينات التلاميد'!$B$5:$G$56,6,0),"") -> 
B148: =IFERROR(IF(ROWS($B$2:B148)>'بينات التلاميد'!$Q$5,"",INDEX('بينات التلاميد'!$B$5:$B$56,SMALL(IF('بينات التلاميد'!$B$5:$B$56<>"",ROW('بينات التلاميد'!$B$5:$B$56)-ROW($B$5)+1),ROWS($B$2:B148)))),"") ->  | C148: =IFERROR(VLOOKUP(B148,'بينات التلاميد'!$B$5:$G$56,6,0),"") -> 
B149: =IFERROR(IF(ROWS($B$2:B149)>'بينات التلاميد'!$Q$5,"",INDEX('بينات التلاميد'!$B$5:$B$56,SMALL(IF('بينات التلاميد'!$B$5:$B$56<>"",ROW('بينات التلاميد'!$B$5:$B$56)-ROW($B$5)+1),ROWS($B$2:B149)))),"") ->  | C149: =IFERROR(VLOOKUP(B149,'بينات التلاميد'!$B$5:$G$56,6,0),"") -> 
B150: =IFERROR(IF(ROWS($B$2:B150)>'بينات التلاميد'!$Q$5,"",INDEX('بينات التلاميد'!$B$5:$B$56,SMALL(IF('بينات التلاميد'!$B$5:$B$56<>"",ROW('بينات التلاميد'!$B$5:$B$56)-ROW($B$5)+1),ROWS($B$2:B150)))),"") ->  | C150: =IFERROR(VLOOKUP(B150,'بينات التلاميد'!$B$5:$G$56,6,0),"") -> 
B151: =IFERROR(IF(ROWS($B$2:B151)>'بينات التلاميد'!$Q$5,"",INDEX('بينات التلاميد'!$B$5:$B$56,SMALL(IF('بينات التلاميد'!$B$5:$B$56<>"",ROW('بينات التلاميد'!$B$5:$B$56)-ROW($B$5)+1),ROWS($B$2:B151)))),"") ->  | C151: =IFERROR(VLOOKUP(B151,'بينات التلاميد'!$B$5:$G$56,6,0),"") -> 
B152: =IFERROR(IF(ROWS($B$2:B152)>'بينات التلاميد'!$Q$5,"",INDEX('بينات التلاميد'!$B$5:$B$56,SMALL(IF('بينات التلاميد'!$B$5:$B$56<>"",ROW('بينات التلاميد'!$B$5:$B$56)-ROW($B$5)+1),ROWS($B$2:B152)))),"") ->  | C152: =IFERROR(VLOOKUP(B152,'بينات التلاميد'!$B$5:$G$56,6,0),"") -> 
B153: =IFERROR(IF(ROWS($B$2:B153)>'بينات التلاميد'!$Q$5,"",INDEX('بينات التلاميد'!$B$5:$B$56,SMALL(IF('بينات التلاميد'!$B$5:$B$56<>"",ROW('بينات التلاميد'!$B$5:$B$56)-ROW($B$5)+1),ROWS($B$2:B153)))),"") ->  | C153: =IFERROR(VLOOKUP(B153,'بينات التلاميد'!$B$5:$G$56,6,0),"") -> 
B154: =IFERROR(IF(ROWS($B$2:B154)>'بينات التلاميد'!$Q$5,"",INDEX('بينات التلاميد'!$B$5:$B$56,SMALL(IF('بينات التلاميد'!$B$5:$B$56<>"",ROW('بينات التلاميد'!$B$5:$B$56)-ROW($B$5)+1),ROWS($B$2:B154)))),"") ->  | C154: =IFERROR(VLOOKUP(B154,'بينات التلاميد'!$B$5:$G$56,6,0),"") -> 
B155: =IFERROR(IF(ROWS($B$2:B155)>'بينات التلاميد'!$Q$5,"",INDEX('بينات التلاميد'!$B$5:$B$56,SMALL(IF('بينات التلاميد'!$B$5:$B$56<>"",ROW('بينات التلاميد'!$B$5:$B$56)-ROW($B$5)+1),ROWS($B$2:B155)))),"") ->  | C155: =IFERROR(VLOOKUP(B155,'بينات التلاميد'!$B$5:$G$56,6,0),"") -> 
B156: =IFERROR(IF(ROWS($B$2:B156)>'بينات التلاميد'!$Q$5,"",INDEX('بينات التلاميد'!$B$5:$B$56,SMALL(IF('بينات التلاميد'!$B$5:$B$56<>"",ROW('بينات التلاميد'!$B$5:$B$56)-ROW($B$5)+1),ROWS($B$2:B156)))),"") ->  | C156: =IFERROR(VLOOKUP(B156,'بينات التلاميد'!$B$5:$G$56,6,0),"") -> 
B157: =IFERROR(IF(ROWS($B$2:B157)>'بينات التلاميد'!$Q$5,"",INDEX('بينات التلاميد'!$B$5:$B$56,SMALL(IF('بينات التلاميد'!$B$5:$B$56<>"",ROW('بينات التلاميد'!$B$5:$B$56)-ROW($B$5)+1),ROWS($B$2:B157)))),"") ->  | C157: =IFERROR(VLOOKUP(B157,'بينات التلاميد'!$B$5:$G$56,6,0),"") -> 
B158: =IFERROR(IF(ROWS($B$2:B158)>'بينات التلاميد'!$Q$5,"",INDEX('بينات التلاميد'!$B$5:$B$56,SMALL(IF('بينات التلاميد'!$B$5:$B$56<>"",ROW('بينات التلاميد'!$B$5:$B$56)-ROW($B$5)+1),ROWS($B$2:B158)))),"") ->  | C158: =IFERROR(VLOOKUP(B158,'بينات التلاميد'!$B$5:$G$56,6,0),"") -> 
B159: =IFERROR(IF(ROWS($B$2:B159)>'بينات التلاميد'!$Q$5,"",INDEX('بينات التلاميد'!$B$5:$B$56,SMALL(IF('بينات التلاميد'!$B$5:$B$56<>"",ROW('بينات التلاميد'!$B$5:$B$56)-ROW($B$5)+1),ROWS($B$2:B159)))),"") ->  | C159: =IFERROR(VLOOKUP(B159,'بينات التلاميد'!$B$5:$G$56,6,0),"") -> 
B160: =IFERROR(IF(ROWS($B$2:B160)>'بينات التلاميد'!$Q$5,"",INDEX('بينات التلاميد'!$B$5:$B$56,SMALL(IF('بينات التلاميد'!$B$5:$B$56<>"",ROW('بينات التلاميد'!$B$5:$B$56)-ROW($B$5)+1),ROWS($B$2:B160)))),"") ->  | C160: =IFERROR(VLOOKUP(B160,'بينات التلاميد'!$B$5:$G$56,6,0),"") -> 
B161: =IFERROR(IF(ROWS($B$2:B161)>'بينات التلاميد'!$Q$5,"",INDEX('بينات التلاميد'!$B$5:$B$56,SMALL(IF('بينات التلاميد'!$B$5:$B$56<>"",ROW('بينات التلاميد'!$B$5:$B$56)-ROW($B$5)+1),ROWS($B$2:B161)))),"") ->  | C161: =IFERROR(VLOOKUP(B161,'بينات التلاميد'!$B$5:$G$56,6,0),"") -> 
B162: =IFERROR(IF(ROWS($B$2:B162)>'بينات التلاميد'!$Q$5,"",INDEX('بينات التلاميد'!$B$5:$B$56,SMALL(IF('بينات التلاميد'!$B$5:$B$56<>"",ROW('بينات التلاميد'!$B$5:$B$56)-ROW($B$5)+1),ROWS($B$2:B162)))),"") ->  | C162: =IFERROR(VLOOKUP(B162,'بينات التلاميد'!$B$5:$G$56,6,0),"") -> 
B163: =IFERROR(IF(ROWS($B$2:B163)>'بينات التلاميد'!$Q$5,"",INDEX('بينات التلاميد'!$B$5:$B$56,SMALL(IF('بينات التلاميد'!$B$5:$B$56<>"",ROW('بينات التلاميد'!$B$5:$B$56)-ROW($B$5)+1),ROWS($B$2:B163)))),"") ->  | C163: =IFERROR(VLOOKUP(B163,'بينات التلاميد'!$B$5:$G$56,6,0),"") -> 
B164: =IFERROR(IF(ROWS($B$2:B164)>'بينات التلاميد'!$Q$5,"",INDEX('بينات التلاميد'!$B$5:$B$56,SMALL(IF('بينات التلاميد'!$B$5:$B$56<>"",ROW('بينات التلاميد'!$B$5:$B$56)-ROW($B$5)+1),ROWS($B$2:B164)))),"") ->  | C164: =IFERROR(VLOOKUP(B164,'بينات التلاميد'!$B$5:$G$56,6,0),"") -> 
B165: =IFERROR(IF(ROWS($B$2:B165)>'بينات التلاميد'!$Q$5,"",INDEX('بينات التلاميد'!$B$5:$B$56,SMALL(IF('بينات التلاميد'!$B$5:$B$56<>"",ROW('بينات التلاميد'!$B$5:$B$56)-ROW($B$5)+1),ROWS($B$2:B165)))),"") ->  | C165: =IFERROR(VLOOKUP(B165,'بينات التلاميد'!$B$5:$G$56,6,0),"") -> 
B166: =IFERROR(IF(ROWS($B$2:B166)>'بينات التلاميد'!$Q$5,"",INDEX('بينات التلاميد'!$B$5:$B$56,SMALL(IF('بينات التلاميد'!$B$5:$B$56<>"",ROW('بينات التلاميد'!$B$5:$B$56)-ROW($B$5)+1),ROWS($B$2:B166)))),"") ->  | C166: =IFERROR(VLOOKUP(B166,'بينات التلاميد'!$B$5:$G$56,6,0),"") -> 
B167: =IFERROR(IF(ROWS($B$2:B167)>'بينات التلاميد'!$Q$5,"",INDEX('بينات التلاميد'!$B$5:$B$56,SMALL(IF('بينات التلاميد'!$B$5:$B$56<>"",ROW('بينات التلاميد'!$B$5:$B$56)-ROW($B$5)+1),ROWS($B$2:B167)))),"") ->  | C167: =IFERROR(VLOOKUP(B167,'بينات التلاميد'!$B$5:$G$56,6,0),"") -> 
B168: =IFERROR(IF(ROWS($B$2:B168)>'بينات التلاميد'!$Q$5,"",INDEX('بينات التلاميد'!$B$5:$B$56,SMALL(IF('بينات التلاميد'!$B$5:$B$56<>"",ROW('بينات التلاميد'!$B$5:$B$56)-ROW($B$5)+1),ROWS($B$2:B168)))),"") ->  | C168: =IFERROR(VLOOKUP(B168,'بينات التلاميد'!$B$5:$G$56,6,0),"") -> 
B169: =IFERROR(IF(ROWS($B$2:B169)>'بينات التلاميد'!$Q$5,"",INDEX('بينات التلاميد'!$B$5:$B$56,SMALL(IF('بينات التلاميد'!$B$5:$B$56<>"",ROW('بينات التلاميد'!$B$5:$B$56)-ROW($B$5)+1),ROWS($B$2:B169)))),"") ->  | C169: =IFERROR(VLOOKUP(B169,'بينات التلاميد'!$B$5:$G$56,6,0),"") -> 
B170: =IFERROR(IF(ROWS($B$2:B170)>'بينات التلاميد'!$Q$5,"",INDEX('بينات التلاميد'!$B$5:$B$56,SMALL(IF('بينات التلاميد'!$B$5:$B$56<>"",ROW('بينات التلاميد'!$B$5:$B$56)-ROW($B$5)+1),ROWS($B$2:B170)))),"") ->  | C170: =IFERROR(VLOOKUP(B170,'بينات التلاميد'!$B$5:$G$56,6,0),"") -> 
B171: =IFERROR(IF(ROWS($B$2:B171)>'بينات التلاميد'!$Q$5,"",INDEX('بينات التلاميد'!$B$5:$B$56,SMALL(IF('بينات التلاميد'!$B$5:$B$56<>"",ROW('بينات التلاميد'!$B$5:$B$56)-ROW($B$5)+1),ROWS($B$2:B171)))),"") ->  | C171: =IFERROR(VLOOKUP(B171,'بينات التلاميد'!$B$5:$G$56,6,0),"") -> 
B172: =IFERROR(IF(ROWS($B$2:B172)>'بينات التلاميد'!$Q$5,"",INDEX('بينات التلاميد'!$B$5:$B$56,SMALL(IF('بينات التلاميد'!$B$5:$B$56<>"",ROW('بينات التلاميد'!$B$5:$B$56)-ROW($B$5)+1),ROWS($B$2:B172)))),"") ->  | C172: =IFERROR(VLOOKUP(B172,'بينات التلاميد'!$B$5:$G$56,6,0),"") -> 
B173: =IFERROR(IF(ROWS($B$2:B173)>'بينات التلاميد'!$Q$5,"",INDEX('بينات التلاميد'!$B$5:$B$56,SMALL(IF('بينات التلاميد'!$B$5:$B$56<>"",ROW('بينات التلاميد'!$B$5:$B$56)-ROW($B$5)+1),ROWS($B$2:B173)))),"") ->  | C173: =IFERROR(VLOOKUP(B173,'بينات التلاميد'!$B$5:$G$56,6,0),"") -> 
B174: =IFERROR(IF(ROWS($B$2:B174)>'بينات التلاميد'!$Q$5,"",INDEX('بينات التلاميد'!$B$5:$B$56,SMALL(IF('بينات التلاميد'!$B$5:$B$56<>"",ROW('بينات التلاميد'!$B$5:$B$56)-ROW($B$5)+1),ROWS($B$2:B174)))),"") ->  | C174: =IFERROR(VLOOKUP(B174,'بينات التلاميد'!$B$5:$G$56,6,0),"") -> 
B175: =IFERROR(IF(ROWS($B$2:B175)>'بينات التلاميد'!$Q$5,"",INDEX('بينات التلاميد'!$B$5:$B$56,SMALL(IF('بينات التلاميد'!$B$5:$B$56<>"",ROW('بينات التلاميد'!$B$5:$B$56)-ROW($B$5)+1),ROWS($B$2:B175)))),"") ->  | C175: =IFERROR(VLOOKUP(B175,'بينات التلاميد'!$B$5:$G$56,6,0),"") -> 
B176: =IFERROR(IF(ROWS($B$2:B176)>'بينات التلاميد'!$Q$5,"",INDEX('بينات التلاميد'!$B$5:$B$56,SMALL(IF('بينات التلاميد'!$B$5:$B$56<>"",ROW('بينات التلاميد'!$B$5:$B$56)-ROW($B$5)+1),ROWS($B$2:B176)))),"") ->  | C176: =IFERROR(VLOOKUP(B176,'بينات التلاميد'!$B$5:$G$56,6,0),"") -> 
B177: =IFERROR(IF(ROWS($B$2:B177)>'بينات التلاميد'!$Q$5,"",INDEX('بينات التلاميد'!$B$5:$B$56,SMALL(IF('بينات التلاميد'!$B$5:$B$56<>"",ROW('بينات التلاميد'!$B$5:$B$56)-ROW($B$5)+1),ROWS($B$2:B177)))),"") ->  | C177: =IFERROR(VLOOKUP(B177,'بينات التلاميد'!$B$5:$G$56,6,0),"") -> 
B178: =IFERROR(IF(ROWS($B$2:B178)>'بينات التلاميد'!$Q$5,"",INDEX('بينات التلاميد'!$B$5:$B$56,SMALL(IF('بينات التلاميد'!$B$5:$B$56<>"",ROW('بينات التلاميد'!$B$5:$B$56)-ROW($B$5)+1),ROWS($B$2:B178)))),"") ->  | C178: =IFERROR(VLOOKUP(B178,'بينات التلاميد'!$B$5:$G$56,6,0),"") -> 
B179: =IFERROR(IF(ROWS($B$2:B179)>'بينات التلاميد'!$Q$5,"",INDEX('بينات التلاميد'!$B$5:$B$56,SMALL(IF('بينات التلاميد'!$B$5:$B$56<>"",ROW('بينات التلاميد'!$B$5:$B$56)-ROW($B$5)+1),ROWS($B$2:B179)))),"") ->  | C179: =IFERROR(VLOOKUP(B179,'بينات التلاميد'!$B$5:$G$56,6,0),"") -> 
B180: =IFERROR(IF(ROWS($B$2:B180)>'بينات التلاميد'!$Q$5,"",INDEX('بينات التلاميد'!$B$5:$B$56,SMALL(IF('بينات التلاميد'!$B$5:$B$56<>"",ROW('بينات التلاميد'!$B$5:$B$56)-ROW($B$5)+1),ROWS($B$2:B180)))),"") ->  | C180: =IFERROR(VLOOKUP(B180,'بينات التلاميد'!$B$5:$G$56,6,0),"") -> 
B181: =IFERROR(IF(ROWS($B$2:B181)>'بينات التلاميد'!$Q$5,"",INDEX('بينات التلاميد'!$B$5:$B$56,SMALL(IF('بينات التلاميد'!$B$5:$B$56<>"",ROW('بينات التلاميد'!$B$5:$B$56)-ROW($B$5)+1),ROWS($B$2:B181)))),"") ->  | C181: =IFERROR(VLOOKUP(B181,'بينات التلاميد'!$B$5:$G$56,6,0),"") -> 
B182: =IFERROR(IF(ROWS($B$2:B182)>'بينات التلاميد'!$Q$5,"",INDEX('بينات التلاميد'!$B$5:$B$56,SMALL(IF('بينات التلاميد'!$B$5:$B$56<>"",ROW('بينات التلاميد'!$B$5:$B$56)-ROW($B$5)+1),ROWS($B$2:B182)))),"") ->  | C182: =IFERROR(VLOOKUP(B182,'بينات التلاميد'!$B$5:$G$56,6,0),"") -> 
B183: =IFERROR(IF(ROWS($B$2:B183)>'بينات التلاميد'!$Q$5,"",INDEX('بينات التلاميد'!$B$5:$B$56,SMALL(IF('بينات التلاميد'!$B$5:$B$56<>"",ROW('بينات التلاميد'!$B$5:$B$56)-ROW($B$5)+1),ROWS($B$2:B183)))),"") ->  | C183: =IFERROR(VLOOKUP(B183,'بينات التلاميد'!$B$5:$G$56,6,0),"") -> 
B184: =IFERROR(IF(ROWS($B$2:B184)>'بينات التلاميد'!$Q$5,"",INDEX('بينات التلاميد'!$B$5:$B$56,SMALL(IF('بينات التلاميد'!$B$5:$B$56<>"",ROW('بينات التلاميد'!$B$5:$B$56)-ROW($B$5)+1),ROWS($B$2:B184)))),"") ->  | C184: =IFERROR(VLOOKUP(B184,'بينات التلاميد'!$B$5:$G$56,6,0),"") -> 
B185: =IFERROR(IF(ROWS($B$2:B185)>'بينات التلاميد'!$Q$5,"",INDEX('بينات التلاميد'!$B$5:$B$56,SMALL(IF('بينات التلاميد'!$B$5:$B$56<>"",ROW('بينات التلاميد'!$B$5:$B$56)-ROW($B$5)+1),ROWS($B$2:B185)))),"") ->  | C185: =IFERROR(VLOOKUP(B185,'بينات التلاميد'!$B$5:$G$56,6,0),"") -> 
B186: =IFERROR(IF(ROWS($B$2:B186)>'بينات التلاميد'!$Q$5,"",INDEX('بينات التلاميد'!$B$5:$B$56,SMALL(IF('بينات التلاميد'!$B$5:$B$56<>"",ROW('بينات التلاميد'!$B$5:$B$56)-ROW($B$5)+1),ROWS($B$2:B186)))),"") ->  | C186: =IFERROR(VLOOKUP(B186,'بينات التلاميد'!$B$5:$G$56,6,0),"") -> 
B187: =IFERROR(IF(ROWS($B$2:B187)>'بينات التلاميد'!$Q$5,"",INDEX('بينات التلاميد'!$B$5:$B$56,SMALL(IF('بينات التلاميد'!$B$5:$B$56<>"",ROW('بينات التلاميد'!$B$5:$B$56)-ROW($B$5)+1),ROWS($B$2:B187)))),"") ->  | C187: =IFERROR(VLOOKUP(B187,'بينات التلاميد'!$B$5:$G$56,6,0),"") -> 
B188: =IFERROR(IF(ROWS($B$2:B188)>'بينات التلاميد'!$Q$5,"",INDEX('بينات التلاميد'!$B$5:$B$56,SMALL(IF('بينات التلاميد'!$B$5:$B$56<>"",ROW('بينات التلاميد'!$B$5:$B$56)-ROW($B$5)+1),ROWS($B$2:B188)))),"") ->  | C188: =IFERROR(VLOOKUP(B188,'بينات التلاميد'!$B$5:$G$56,6,0),"") -> 
B189: =IFERROR(IF(ROWS($B$2:B189)>'بينات التلاميد'!$Q$5,"",INDEX('بينات التلاميد'!$B$5:$B$56,SMALL(IF('بينات التلاميد'!$B$5:$B$56<>"",ROW('بينات التلاميد'!$B$5:$B$56)-ROW($B$5)+1),ROWS($B$2:B189)))),"") ->  | C189: =IFERROR(VLOOKUP(B189,'بينات التلاميد'!$B$5:$G$56,6,0),"") -> 
B190: =IFERROR(IF(ROWS($B$2:B190)>'بينات التلاميد'!$Q$5,"",INDEX('بينات التلاميد'!$B$5:$B$56,SMALL(IF('بينات التلاميد'!$B$5:$B$56<>"",ROW('بينات التلاميد'!$B$5:$B$56)-ROW($B$5)+1),ROWS($B$2:B190)))),"") ->  | C190: =IFERROR(VLOOKUP(B190,'بينات التلاميد'!$B$5:$G$56,6,0),"") -> 
B191: =IFERROR(IF(ROWS($B$2:B191)>'بينات التلاميد'!$Q$5,"",INDEX('بينات التلاميد'!$B$5:$B$56,SMALL(IF('بينات التلاميد'!$B$5:$B$56<>"",ROW('بينات التلاميد'!$B$5:$B$56)-ROW($B$5)+1),ROWS($B$2:B191)))),"") ->  | C191: =IFERROR(VLOOKUP(B191,'بينات التلاميد'!$B$5:$G$56,6,0),"") -> 
B192: =IFERROR(IF(ROWS($B$2:B192)>'بينات التلاميد'!$Q$5,"",INDEX('بينات التلاميد'!$B$5:$B$56,SMALL(IF('بينات التلاميد'!$B$5:$B$56<>"",ROW('بينات التلاميد'!$B$5:$B$56)-ROW($B$5)+1),ROWS($B$2:B192)))),"") ->  | C192: =IFERROR(VLOOKUP(B192,'بينات التلاميد'!$B$5:$G$56,6,0),"") -> 
B193: =IFERROR(IF(ROWS($B$2:B193)>'بينات التلاميد'!$Q$5,"",INDEX('بينات التلاميد'!$B$5:$B$56,SMALL(IF('بينات التلاميد'!$B$5:$B$56<>"",ROW('بينات التلاميد'!$B$5:$B$56)-ROW($B$5)+1),ROWS($B$2:B193)))),"") ->  | C193: =IFERROR(VLOOKUP(B193,'بينات التلاميد'!$B$5:$G$56,6,0),"") -> 
A194: =IFERROR(VLOOKUP(C194,$D$2:$E$20,2,0),"") ->  | B194: =IFERROR(IF(ROWS($B$2:B194)>'بينات التلاميد'!$Q$5,"",INDEX('بينات التلاميد'!$B$5:$B$56,SMALL(IF('بينات التلاميد'!$B$5:$B$56<>"",ROW('بينات التلاميد'!$B$5:$B$56)-ROW($B$5)+1),ROWS($B$2:B194)))),"") ->  | C194: =IFERROR(VLOOKUP(B194,'بينات التلاميد'!$B$5:$G$56,6,0),"") -> 
B195: =IFERROR(IF(ROWS($B$2:B195)>'بينات التلاميد'!$Q$5,"",INDEX('بينات التلاميد'!$B$5:$B$56,SMALL(IF('بينات التلاميد'!$B$5:$B$56<>"",ROW('بينات التلاميد'!$B$5:$B$56)-ROW($B$5)+1),ROWS($B$2:B195)))),"") ->  | C195: =IFERROR(VLOOKUP(B195,'بينات التلاميد'!$B$5:$G$56,6,0),"") -> 
B196: =IFERROR(IF(ROWS($B$2:B196)>'بينات التلاميد'!$Q$5,"",INDEX('بينات التلاميد'!$B$5:$B$56,SMALL(IF('بينات التلاميد'!$B$5:$B$56<>"",ROW('بينات التلاميد'!$B$5:$B$56)-ROW($B$5)+1),ROWS($B$2:B196)))),"") ->  | C196: =IFERROR(VLOOKUP(B196,'بينات التلاميد'!$B$5:$G$56,6,0),"") -> 
B197: =IFERROR(IF(ROWS($B$2:B197)>'بينات التلاميد'!$Q$5,"",INDEX('بينات التلاميد'!$B$5:$B$56,SMALL(IF('بينات التلاميد'!$B$5:$B$56<>"",ROW('بينات التلاميد'!$B$5:$B$56)-ROW($B$5)+1),ROWS($B$2:B197)))),"") ->  | C197: =IFERROR(VLOOKUP(B197,'بينات التلاميد'!$B$5:$G$56,6,0),"") -> 
B198: =IFERROR(IF(ROWS($B$2:B198)>'بينات التلاميد'!$Q$5,"",INDEX('بينات التلاميد'!$B$5:$B$56,SMALL(IF('بينات التلاميد'!$B$5:$B$56<>"",ROW('بينات التلاميد'!$B$5:$B$56)-ROW($B$5)+1),ROWS($B$2:B198)))),"") ->  | C198: =IFERROR(VLOOKUP(B198,'بينات التلاميد'!$B$5:$G$56,6,0),"") -> 
B199: =IFERROR(IF(ROWS($B$2:B199)>'بينات التلاميد'!$Q$5,"",INDEX('بينات التلاميد'!$B$5:$B$56,SMALL(IF('بينات التلاميد'!$B$5:$B$56<>"",ROW('بينات التلاميد'!$B$5:$B$56)-ROW($B$5)+1),ROWS($B$2:B199)))),"") ->  | C199: =IFERROR(VLOOKUP(B199,'بينات التلاميد'!$B$5:$G$56,6,0),"") -> 
B200: =IFERROR(IF(ROWS($B$2:B200)>'بينات التلاميد'!$Q$5,"",INDEX('بينات التلاميد'!$B$5:$B$56,SMALL(IF('بينات التلاميد'!$B$5:$B$56<>"",ROW('بينات التلاميد'!$B$5:$B$56)-ROW($B$5)+1),ROWS($B$2:B200)))),"") ->  | C200: =IFERROR(VLOOKUP(B200,'بينات التلاميد'!$B$5:$G$56,6,0),"") -> 
... 1176 more rows

Sheet التقرير اليومي
B1: الجمهورية الجزائرية الديمقراطية الشعبية | R1: مكان الحغظ | S1: اسم الملف
B2: وزارة التربية الوطنية | G2: التقرير اليومي للاستشارة | M2: 124 | R2: D:\Sep | S2: dim01
B3: مديرية التربية لولاية تلمسان
G4: الخميــس | J4: 2017-10-05 | M4: ثانوية الخوارزمي
B5: -1 | C5: مواظبة التلاميذ : | E5: الغيـــــــاب عن الدروس | M5: مغنية
B6: التعـداد | D6: التسجيلات | G6: الغائبـون | J6: ح س اليومي | K6: ح س الكلي | L6: عدد س الغياب | M6: نسبة غياب التلاميذ
D7: ذكور | E7: إناث | F7: المجموع | G7: ذكور | H7: إناث | I7: المجموع
B8: السنة الأولى ثانوي | D8: 112 | E8: 121 | F8: =SUM(D8:E8) -> 233 | G8: =COUNTIF(P63:P94,1) -> 0 | H8: =COUNTIF(P63:P94,2) -> 0 | I8: =SUM(G8:H8) -> 0 | J8: 52 | K8: =J8*F8 -> 12116 | L8: 26 | M8: =(L8/K8)*100 -> 0.2145922747 | N8: %
B9: السنة الثانية ثانوي | D9: 39 | E9: 86 | F9: =SUM(D9:E9) -> 125 | G9: =COUNTIF(Q63:Q94,1) -> 0 | H9: =COUNTIF(Q63:Q94,2) -> 0 | I9: =SUM(G9:H9) -> 0 | J9: 40 | K9: =J9*F9 -> 5000 | L9: 38 | M9: =(L9/K9)*100 -> 0.76 | N9: %
B10: السنة الثالثة ثانوي | D10: 71 | E10: 104 | F10: =SUM(D10:E10) -> 175 | G10: =COUNTIF(S63:S115,1) -> 0 | H10: =COUNTIF(R63:R117,2) -> 0 | I10: =SUM(G10:H10) -> 0 | J10: 46 | K10: =J10*F10 -> 8050 | L10: 107 | M10: =(L10/K10)*100 -> 1.329192547 | N10: %
B11: المجموع | D11: =SUM(D8:D10) -> 222 | E11: =SUM(E8:E10) -> 311 | F11: =SUM(D11:E11) -> 533 | G11: =SUM(G8:G10) -> 0 | H11: =SUM(H8:H10) -> 0 | I11: =SUM(G11:H11) -> 0 | J11: =SUM(J8:J10) -> 138 | K11: =SUM(K8:K10) -> 25166 | L11: =L8+L9+L10 -> 171 | M11: =(L11/K11)*100 -> 0.6794881984 | N11: %
E12: الغيـــــــاب في النظـام النصف داخلي
B13: التعـداد | D13: المسجلون | G13: الغائبـون | J13: ملاحظـــــــــات
D14: ذكور | E14: إناث | F14: المجموع | G14: ذكور | H14: إناث | I14: المجموع
B15: السنة الأولى ثانوي | D15: 85 | E15: 95 | F15: =SUM(D15:E15) -> 180 | G15: 3 | H15: 1 | I15: =SUM(G15:H15) -> 4
B16: السنة الثانية ثانوي | D16: 28 | E16: 66 | F16: =SUM(D16:E16) -> 94 | G16: 3 | H16: 1 | I16: =SUM(G16:H16) -> 4
B17: السنة الثالثة ثانوي | D17: 53 | E17: 71 | F17: =SUM(D17:E17) -> 124 | G17: 2 | H17: 4 | I17: =SUM(G17:H17) -> 6
B18: المجموع | D18: =SUM(D15:D17) -> 166 | E18: =SUM(E15:E17) -> 232 | F18: =SUM(D18:E18) -> 398 | G18: =SUM(G15:G17) -> 8 | H18: =SUM(H15:H17) -> 6 | I18: =SUM(G18:H18) -> 14 | J18: نسبة غياب التلاميذ | M18: =(I18/F18)*100 -> 3.51758794 | N18: %
B19: -2 | C19: حــــركة التلاميـــــذ
B20: الرقم | C20: الدخـــــــــــول | E20: رقم | F20: الخـــــــــــــــــــــروج | I20: رقم | J20: تغييـــــــــــــــــر الصـــــفة | N20: رقم | R20: 56
E21: البطاقة | I21: البطاقة | J21: ن د ــــــ خ | L21: خ ـــــــ ن د | N21: البطاقة
B22: 1 | R22: =SUM(R6:R21) -> 56
B23: 2
B24: 3
B25: -3 | C25: مواظبـــة الأساتذة :
B26: الرقم | C26: اللقب و الإسم | D26: المادة | E26: 08ـ09 | F26: 09ـ10 | G26: 10ـ11 | H26: 11ـ12 | I26: 14½-13½ | J26: 15½-14½ | K26: 16½-15½ | L26: 17½-16½ | M26: سبب الغياب | N26: ملاحظات
A27: 1 | B27: 1 | C27: =VLOOKUP(A27,tem,2,0) -> أ.ناسي | D27: =VLOOKUP(A27,tem,3,0) -> أ.الرياضيات | E27: =VLOOKUP(A27,tem,4,0) -> 0 | F27: =VLOOKUP(A27,tem,5,0) -> 0 | G27: =VLOOKUP(A27,tem,6,0) -> 3ت ر | H27: =VLOOKUP(A27,tem,7,0) -> 0 | I27: =VLOOKUP(A27,tem,8,0) -> 0 | J27: =VLOOKUP(A27,tem,9,0) -> 0 | K27: =VLOOKUP(A27,tem,10,0) -> 0 | L27: =VLOOKUP(A27,tem,11,0) -> 1ع1
A28: 3 | B28: 1 | C28: أ.بوعريشة | D28: أ.الرياضيات | E28: 0 | F28: 0 | G28: 0 | H28: 0 | I28: 0 | J28: 0 | K28: 0 | L28: 0
B29: 1
A30: 44 | B30: 1 | C30: أ.تربش | D30: أ.الرياضة | E30: 0 | F30: 0 | G30: 0 | H30: 0 | I30: 0 | J30: 0 | K30: 0 | L30: 0
B31: 1
A32: 5 | B32: 1 | C32: أ.ديب | D32: أ.الرياضيات | E32: 0 | F32: 0 | G32: 0 | H32: 0 | I32: 0 | J32: 0 | K32: 0 | L32: 0
B33: 1
B34: 1
B35: 1
B36: 1
B37: 1
B38: 1
B39: 1
B40: 1
B41: 1
B42: 1
B43: 1
B44: 1
B45: 1
B46: 1
B47: 1
B48: 1
B49: 1
B50: 1
B51: -4 | C51: غيابات و تأخرات مساعدي التربية و موطفي عقود ما قبل التشغيل
B52: الرقم | C52: اللقب و الإسم | E52: الفترة الصباحية | H52: الفترة المسائية | K52: ملاحظات | M52: سبب الغياب
B53: 1
B54: 2
B55: 3
B56: -5 | C56: تعويــض الدروس الضـــــائعــة
B57: الرقم | C57: اللقب و الإسم | D57: المادة | E57: القسم | G57: التوقيت | I57: ملاحظـــــــــــــــــات
B58: 1
B59: 2
B61: الغيــــــــابات اليومية | M61: =G4 -> الخميــس | N61: =J4 -> 2017-10-05 | S61: الجنس
B62: الرقم | C62: السنة الأول | D62: القسم | E62: السنة الثانية | G62: القسم | H62: السنة الثالثة | J62: القسم | K62: قضايا سلــوكية | S62: س1 | T62: س2 | U62: س3
B63: 1 | H63: سعاد2 | J63: 3ع ت01 | O63: =IFERROR(VLOOKUP(D63,'أسماء التلاميذ'!$D$2:$E$20,2,0),"") ->  | P63: =IFERROR(VLOOKUP(G63,'أسماء التلاميذ'!$D$2:$E$20,2,0),"") ->  | Q63: =IFERROR(VLOOKUP(J63,'أسماء التلاميذ'!$D$2:$E$20,2,0),"") -> Classe2 | U63: أ
B64: 2 | H64: أحمد3 | J64: 3ت ر | O64: =IFERROR(VLOOKUP(D64,'أسماء التلاميذ'!$D$2:$E$20,2,0),"") ->  | P64: =IFERROR(VLOOKUP(G64,'أسماء التلاميذ'!$D$2:$E$20,2,0),"") ->  | Q64: =IFERROR(VLOOKUP(J64,'أسماء التلاميذ'!$D$2:$E$20,2,0),"") -> Classe1 | U64: أ
B65: 3 | H65: أحمد7 | J65: 3ت ر | O65: =IFERROR(VLOOKUP(D65,'أسماء التلاميذ'!$D$2:$E$20,2,0),"") ->  | P65: =IFERROR(VLOOKUP(G65,'أسماء التلاميذ'!$D$2:$E$20,2,0),"") ->  | Q65: =IFERROR(VLOOKUP(J65,'أسماء التلاميذ'!$D$2:$E$20,2,0),"") -> Classe1 | U65: أ
B66: 4 | H66: أحمد3 | J66: 3ت ر | O66: =IFERROR(VLOOKUP(D66,'أسماء التلاميذ'!$D$2:$E$20,2,0),"") ->  | P66: =IFERROR(VLOOKUP(G66,'أسماء التلاميذ'!$D$2:$E$20,2,0),"") ->  | Q66: =IFERROR(VLOOKUP(J66,'أسماء التلاميذ'!$D$2:$E$20,2,0),"") -> Classe1
B67: 5 | O67: =IFERROR(VLOOKUP(D67,'أسماء التلاميذ'!$D$2:$E$20,2,0),"") ->  | P67: =IFERROR(VLOOKUP(G67,'أسماء التلاميذ'!$D$2:$E$20,2,0),"") ->  | Q67: =IFERROR(VLOOKUP(J67,'أسماء التلاميذ'!$D$2:$E$20,2,0),"") -> 
B68: 6 | O68: =IFERROR(VLOOKUP(D68,'أسماء التلاميذ'!$D$2:$E$20,2,0),"") ->  | P68: =IFERROR(VLOOKUP(G68,'أسماء التلاميذ'!$D$2:$E$20,2,0),"") ->  | Q68: =IFERROR(VLOOKUP(J68,'أسماء التلاميذ'!$D$2:$E$20,2,0),"") -> 
B69: 7 | O69: =IFERROR(VLOOKUP(D69,'أسماء التلاميذ'!$D$2:$E$20,2,0),"") ->  | P69: =IFERROR(VLOOKUP(G69,'أسماء التلاميذ'!$D$2:$E$20,2,0),"") ->  | Q69: =IFERROR(VLOOKUP(J69,'أسماء التلاميذ'!$D$2:$E$20,2,0),"") -> 
B70: 8 | K70: الحوادث المدرسية : | O70: =IFERROR(VLOOKUP(D70,'أسماء التلاميذ'!$D$2:$E$20,2,0),"") ->  | P70: =IFERROR(VLOOKUP(G70,'أسماء التلاميذ'!$D$2:$E$20,2,0),"") ->  | Q70: =IFERROR(VLOOKUP(J70,'أسماء التلاميذ'!$D$2:$E$20,2,0),"") -> 
B71: 9 | O71: =IFERROR(VLOOKUP(D71,'أسماء التلاميذ'!$D$2:$E$20,2,0),"") ->  | P71: =IFERROR(VLOOKUP(G71,'أسماء التلاميذ'!$D$2:$E$20,2,0),"") ->  | Q71: =IFERROR(VLOOKUP(J71,'أسماء التلاميذ'!$D$2:$E$20,2,0),"") -> 
B72: 10 | O72: =IFERROR(VLOOKUP(D72,'أسماء التلاميذ'!$D$2:$E$20,2,0),"") ->  | P72: =IFERROR(VLOOKUP(G72,'أسماء التلاميذ'!$D$2:$E$20,2,0),"") ->  | Q72: =IFERROR(VLOOKUP(J72,'أسماء التلاميذ'!$D$2:$E$20,2,0),"") -> 
B73: 11 | O73: =IFERROR(VLOOKUP(D73,'أسماء التلاميذ'!$D$2:$E$20,2,0),"") ->  | P73: =IFERROR(VLOOKUP(G73,'أسماء التلاميذ'!$D$2:$E$20,2,0),"") ->  | Q73: =IFERROR(VLOOKUP(J73,'أسماء التلاميذ'!$D$2:$E$20,2,0),"") -> 
B74: 12 | K74: الصحة المدرسية : | O74: =IFERROR(VLOOKUP(D74,'أسماء التلاميذ'!$D$2:$E$20,2,0),"") ->  | P74: =IFERROR(VLOOKUP(G74,'أسماء التلاميذ'!$D$2:$E$20,2,0),"") ->  | Q74: =IFERROR(VLOOKUP(J74,'أسماء التلاميذ'!$D$2:$E$20,2,0),"") -> 
B75: 13 | O75: =IFERROR(VLOOKUP(D75,'أسماء التلاميذ'!$D$2:$E$20,2,0),"") ->  | P75: =IFERROR(VLOOKUP(G75,'أسماء التلاميذ'!$D$2:$E$20,2,0),"") ->  | Q75: =IFERROR(VLOOKUP(J75,'أسماء التلاميذ'!$D$2:$E$20,2,0),"") -> 
B76: 14 | O76: =IFERROR(VLOOKUP(D76,'أسماء التلاميذ'!$D$2:$E$20,2,0),"") ->  | P76: =IFERROR(VLOOKUP(G76,'أسماء التلاميذ'!$D$2:$E$20,2,0),"") ->  | Q76: =IFERROR(VLOOKUP(J76,'أسماء التلاميذ'!$D$2:$E$20,2,0),"") -> 
B77: 15 | O77: =IFERROR(VLOOKUP(D77,'أسماء التلاميذ'!$D$2:$E$20,2,0),"") ->  | P77: =IFERROR(VLOOKUP(G77,'أسماء التلاميذ'!$D$2:$E$20,2,0),"") ->  | Q77: =IFERROR(VLOOKUP(J77,'أسماء التلاميذ'!$D$2:$E$20,2,0),"") -> 
B78: 16 | O78: =IFERROR(VLOOKUP(D78,'أسماء التلاميذ'!$D$2:$E$20,2,0),"") ->  | P78: =IFERROR(VLOOKUP(G78,'أسماء التلاميذ'!$D$2:$E$20,2,0),"") ->  | Q78: =IFERROR(VLOOKUP(J78,'أسماء التلاميذ'!$D$2:$E$20,2,0),"") -> 
B79: 17 | O79: =IFERROR(VLOOKUP(D79,'أسماء التلاميذ'!$D$2:$E$20,2,0),"") ->  | P79: =IFERROR(VLOOKUP(G79,'أسماء التلاميذ'!$D$2:$E$20,2,0),"") ->  | Q79: =IFERROR(VLOOKUP(J79,'أسماء التلاميذ'!$D$2:$E$20,2,0),"") -> 
B80: 18 | O80: =IFERROR(VLOOKUP(D80,'أسماء التلاميذ'!$D$2:$E$20,2,0),"") ->  | P80: =IFERROR(VLOOKUP(G80,'أسماء التلاميذ'!$D$2:$E$20,2,0),"") ->  | Q80: =IFERROR(VLOOKUP(J80,'أسماء التلاميذ'!$D$2:$E$20,2,0),"") -> 
B81: 19 | O81: =IFERROR(VLOOKUP(D81,'أسماء التلاميذ'!$D$2:$E$20,2,0),"") ->  | P81: =IFERROR(VLOOKUP(G81,'أسماء التلاميذ'!$D$2:$E$20,2,0),"") ->  | Q81: =IFERROR(VLOOKUP(J81,'أسماء التلاميذ'!$D$2:$E$20,2,0),"") -> 
B82: 20 | K82: ملاحظات مختلفة : | O82: =IFERROR(VLOOKUP(D82,'أسماء التلاميذ'!$D$2:$E$20,2,0),"") ->  | P82: =IFERROR(VLOOKUP(G82,'أسماء التلاميذ'!$D$2:$E$20,2,0),"") ->  | Q82: =IFERROR(VLOOKUP(J82,'أسماء التلاميذ'!$D$2:$E$20,2,0),"") -> 
B83: 21 | O83: =IFERROR(VLOOKUP(D83,'أسماء التلاميذ'!$D$2:$E$20,2,0),"") ->  | P83: =IFERROR(VLOOKUP(G83,'أسماء التلاميذ'!$D$2:$E$20,2,0),"") ->  | Q83: =IFERROR(VLOOKUP(J83,'أسماء التلاميذ'!$D$2:$E$20,2,0),"") -> 
B84: 22 | O84: =IFERROR(VLOOKUP(D84,'أسماء التلاميذ'!$D$2:$E$20,2,0),"") ->  | P84: =IFERROR(VLOOKUP(G84,'أسماء التلاميذ'!$D$2:$E$20,2,0),"") ->  | Q84: =IFERROR(VLOOKUP(J84,'أسماء التلاميذ'!$D$2:$E$20,2,0),"") -> 
B85: 23 | O85: =IFERROR(VLOOKUP(D85,'أسماء التلاميذ'!$D$2:$E$20,2,0),"") ->  | P85: =IFERROR(VLOOKUP(G85,'أسماء التلاميذ'!$D$2:$E$20,2,0),"") ->  | Q85: =IFERROR(VLOOKUP(J85,'أسماء التلاميذ'!$D$2:$E$20,2,0),"") -> 
B86: 24 | O86: =IFERROR(VLOOKUP(D86,'أسماء التلاميذ'!$D$2:$E$20,2,0),"") ->  | P86: =IFERROR(VLOOKUP(G86,'أسماء التلاميذ'!$D$2:$E$20,2,0),"") ->  | Q86: =IFERROR(VLOOKUP(J86,'أسماء التلاميذ'!$D$2:$E$20,2,0),"") -> 
B87: 25 | O87: =IFERROR(VLOOKUP(D87,'أسماء التلاميذ'!$D$2:$E$20,2,0),"") ->  | P87: =IFERROR(VLOOKUP(G87,'أسماء التلاميذ'!$D$2:$E$20,2,0),"") ->  | Q87: =IFERROR(VLOOKUP(J87,'أسماء التلاميذ'!$D$2:$E$20,2,0),"") -> 
B88: 26 | O88: =IFERROR(VLOOKUP(D88,'أسماء التلاميذ'!$D$2:$E$20,2,0),"") ->  | P88: =IFERROR(VLOOKUP(G88,'أسماء التلاميذ'!$D$2:$E$20,2,0),"") ->  | Q88: =IFERROR(VLOOKUP(J88,'أسماء التلاميذ'!$D$2:$E$20,2,0),"") -> 
B89: 27 | K89: ندوات - مجالس - زيارات | O89: =IFERROR(VLOOKUP(D89,'أسماء التلاميذ'!$D$2:$E$20,2,0),"") ->  | P89: =IFERROR(VLOOKUP(G89,'أسماء التلاميذ'!$D$2:$E$20,2,0),"") ->  | Q89: =IFERROR(VLOOKUP(J89,'أسماء التلاميذ'!$D$2:$E$20,2,0),"") -> 
B90: 28 | O90: =IFERROR(VLOOKUP(D90,'أسماء التلاميذ'!$D$2:$E$20,2,0),"") ->  | P90: =IFERROR(VLOOKUP(G90,'أسماء التلاميذ'!$D$2:$E$20,2,0),"") ->  | Q90: =IFERROR(VLOOKUP(J90,'أسماء التلاميذ'!$D$2:$E$20,2,0),"") -> 
B91: 29 | O91: =IFERROR(VLOOKUP(D91,'أسماء التلاميذ'!$D$2:$E$20,2,0),"") ->  | P91: =IFERROR(VLOOKUP(G91,'أسماء التلاميذ'!$D$2:$E$20,2,0),"") ->  | Q91: =IFERROR(VLOOKUP(J91,'أسماء التلاميذ'!$D$2:$E$20,2,0),"") -> 
B92: 30 | O92: =IFERROR(VLOOKUP(D92,'أسماء التلاميذ'!$D$2:$E$20,2,0),"") ->  | P92: =IFERROR(VLOOKUP(G92,'أسماء التلاميذ'!$D$2:$E$20,2,0),"") ->  | Q92: =IFERROR(VLOOKUP(J92,'أسماء التلاميذ'!$D$2:$E$20,2,0),"") -> 
B93: 31 | O93: =IFERROR(VLOOKUP(D93,'أسماء التلاميذ'!$D$2:$E$20,2,0),"") ->  | P93: =IFERROR(VLOOKUP(G93,'أسماء التلاميذ'!$D$2:$E$20,2,0),"") ->  | Q93: =IFERROR(VLOOKUP(J93,'أسماء التلاميذ'!$D$2:$E$20,2,0),"") -> 
B94: 32 | O94: =IFERROR(VLOOKUP(D94,'أسماء التلاميذ'!$D$2:$E$20,2,0),"") ->  | P94: =IFERROR(VLOOKUP(G94,'أسماء التلاميذ'!$D$2:$E$20,2,0),"") ->  | Q94: =IFERROR(VLOOKUP(J94,'أسماء التلاميذ'!$D$2:$E$20,2,0),"") -> 
B95: 33 | O95: =IFERROR(VLOOKUP(D95,'أسماء التلاميذ'!$D$2:$E$20,2,0),"") ->  | P95: =IFERROR(VLOOKUP(G95,'أسماء التلاميذ'!$D$2:$E$20,2,0),"") ->  | Q95: =IFERROR(VLOOKUP(J95,'أسماء التلاميذ'!$D$2:$E$20,2,0),"") -> 
B96: 34 | K96: شهادة مدرسية | M96: العدد : | O96: =IFERROR(VLOOKUP(D96,'أسماء التلاميذ'!$D$2:$E$20,2,0),"") ->  | P96: =IFERROR(VLOOKUP(G96,'أسماء التلاميذ'!$D$2:$E$20,2,0),"") ->  | Q96: =IFERROR(VLOOKUP(J96,'أسماء التلاميذ'!$D$2:$E$20,2,0),"") -> 
B97: 35 | K97: من | M97: الــى | O97: =IFERROR(VLOOKUP(D97,'أسماء التلاميذ'!$D$2:$E$20,2,0),"") ->  | P97: =IFERROR(VLOOKUP(G97,'أسماء التلاميذ'!$D$2:$E$20,2,0),"") ->  | Q97: =IFERROR(VLOOKUP(J97,'أسماء التلاميذ'!$D$2:$E$20,2,0),"") -> 
B98: 36 | O98: =IFERROR(VLOOKUP(D98,'أسماء التلاميذ'!$D$2:$E$20,2,0),"") ->  | P98: =IFERROR(VLOOKUP(G98,'أسماء التلاميذ'!$D$2:$E$20,2,0),"") ->  | Q98: =IFERROR(VLOOKUP(J98,'أسماء التلاميذ'!$D$2:$E$20,2,0),"") -> 
B99: 37 | K99: ملاحظات السيد الناظــر | O99: =IFERROR(VLOOKUP(D99,'أسماء التلاميذ'!$D$2:$E$20,2,0),"") ->  | P99: =IFERROR(VLOOKUP(G99,'أسماء التلاميذ'!$D$2:$E$20,2,0),"") ->  | Q99: =IFERROR(VLOOKUP(J99,'أسماء التلاميذ'!$D$2:$E$20,2,0),"") -> 
B100: 38 | O100: =IFERROR(VLOOKUP(D100,'أسماء التلاميذ'!$D$2:$E$20,2,0),"") ->  | P100: =IFERROR(VLOOKUP(G100,'أسماء التلاميذ'!$D$2:$E$20,2,0),"") ->  | Q100: =IFERROR(VLOOKUP(J100,'أسماء التلاميذ'!$D$2:$E$20,2,0),"") -> 
B101: 39 | O101: =IFERROR(VLOOKUP(D101,'أسماء التلاميذ'!$D$2:$E$20,2,0),"") ->  | P101: =IFERROR(VLOOKUP(G101,'أسماء التلاميذ'!$D$2:$E$20,2,0),"") ->  | Q101: =IFERROR(VLOOKUP(J101,'أسماء التلاميذ'!$D$2:$E$20,2,0),"") -> 
B102: 40 | O102: =IFERROR(VLOOKUP(D102,'أسماء التلاميذ'!$D$2:$E$20,2,0),"") ->  | P102: =IFERROR(VLOOKUP(G102,'أسماء التلاميذ'!$D$2:$E$20,2,0),"") ->  | Q102: =IFERROR(VLOOKUP(J102,'أسماء التلاميذ'!$D$2:$E$20,2,0),"") -> 
C103: مستشار التربية | L103: الناظر
E106: الثلاثاء
E107: 08ـ09 | F107: 09ـ10 | G107: 10ـ11 | H107: 11ـ12 | I107: 14½-13½ | J107: 15½-14½ | K107: 16½-15½ | L107: 17½-16½
B108: 1 | C108: أ.ناسي | D108: أ.الرياضيات | G108: 3ت ر | L108: 1ع1
B109: 2 | C109: أ.بوطوبة | D109: أ.الرياضيات
B110: 3 | C110: أ.بوعريشة | D110: أ.الرياضيات
B111: 4 | C111: أ.قبلي | D111: أ.الرياضيات
B112: 5 | C112: أ.ديب | D112: أ.الرياضيات
B113: 6 | C113: أ.عشماوي | D113: أ.الفيزياء
B114: 7 | C114: أ.حاجب | D114: أ.الفيزياء
B115: 8 | C115: قوراري | D115: أ.الفيزياء
B116: 9 | C116: أ.ناضور | D116: أ.الفيزياء
B117: 10 | C117: أ.زرار | D117: أ.الفيزياء
B118: 11 | C118: أ.براهمي | D118: أ.ع الطبيعية
B119: 12 | C119: أ.لعشب | D119: أ.ع الطبيعية
B120: 13 | C120: أ.درني | D120: أ.ع الطبيعية
B121: 14 | C121: أ.فراج | D121: أ.ع الطبيعية
B122: 15 | C122: أ.كريب | D122: أ,الأدب العربي
B123: 16 | C123: أ.صبيان | D123: أ,الأدب العربي
B124: 17 | C124: أ.قادري | D124: أ,الأدب العربي
B125: 18 | C125: أ.أعطا الله | D125: أ,الأدب العربي
B126: 19 | C126: أ.قعاد | D126: أ,الأدب العربي
B127: 20 | C127: أ.قان | D127: أ.الاجتماعيات
B128: 21 | C128: أ.سواريت | D128: أ.الاجتماعيات
B129: 22 | C129: أ.صفراوي | D129: أ.الاجتماعيات
B130: 23 | C130: أ.أجد | D130: أ.الاجتماعيات
B131: 24 | C131: أ.بوحاجب/و | D131: أ.ع الإسلامية
B132: 25 | C132: أ.بوزياني | D132: أ.ع الإسلامية
B133: 26 | C133: أ.عزيز | D133: أ.الفلسفة
B134: 27 | C134: أ.زقاي | D134: أ.الفلسفة
B135: 28 | C135: أ.رابحي | D135: أ.الفرنسية
B136: 29 | C136: أ.كوليلي | D136: أ.الفرنسية
B137: 30 | C137: أ.بومانة | D137: أ.الفرنسية
B138: 31 | C138: أ.عباد | D138: أ.الفرنسية
B139: 32 | C139: أ.العرباوي | D139: أ.الانجليزية
B140: 33 | C140: أ.معزوز | D140: أ.الانجليزية
B141: 34 | C141: أ.مزاري | D141: أ.الانجليزية
B142: 35 | C142: أ.شنتوف | D142: أ.الانجليزية
B143: 36 | C143: أ.سيفاني | D143: أ.الاسبانية
B144: 37 | C144: أ.زغودي | D144: أ.التكنولوجيا
B145: 38 | C145: أ.موس | D145: أ.التكنولوجيا
B146: 39 | C146: أ.بوهنة | D146: أ.التكنولوجيا
B147: 40 | C147: أ.نوار | D147: أ.المعلوماتية
B148: 41 | C148: أ.بوشيخي | D148: أ.الاقتصاد
B149: 42 | C149: أ.فارس | D149: أ.الاقتصاد
B150: 43 | C150: أ.لقبوري | D150: أ.الرياضة
B151: 44 | C151: أ.تربش | D151: أ.الرياضة
B152: 45 | C152: أ.كحلون | D152: أ.الرياضة
